Cogmind - Beta 14 @@@ ROGUE MODE // 2024.11.22 @ 05:33:15 Player: Darby Result: Escaped! Performance ------------- Evolutions (9) 4500 Regions Visited (36) 7200 Robots Destroyed (472) 2360 Value Destroyed (16019) 16019 Prototype IDs (110) 2200 Alien Tech Used (2) 400 Bonus (14533) 14533 TOTAL SCORE: 47212 Bonus ------- Triggered High Security 500 High Alert Combat Kills 1593 Follower Combat Kills 4104 Entered Garrisons 600 Used RIF Installer 2000 Network Hubs Disabled 200 Aligned with FarCom 300 Met Zhirov 300 Built Enhanced Grunts 300 A7 Reached Mainframe 300 Met R17 at Cetus 500 Met R17 at Research 2000 Win 3000 Friendly Fire -1164 Cogmind --------- Core Integrity 1344/1600 Matter 119/300 Energy 51/100 System Corruption 1% Temperature Warning (374) Movement Hovering (46) Location To Epsilon Eridani Parts ------- > --- POWER (2) -------- Improved Fusion Compressor > --- PROPULSION (8) --- Combat Antigrav System Combat Antigrav System Antigrav Array Combat Linear Gravjet Combat Linear Gravjet Combat Linear Gravjet Combat Linear Gravjet > --- UTILITY (11) ----- High-capacity Storage Unit Experimental Targeting Computer Core Analyzer Armor Integrity Analyzer Advanced Weapon Cycler Advanced Hacking Suite Relay Coupler [Sentry] (15) Relay Coupler [Hunter] (6) Relay Coupler [Behemoth] (1) > --- WEAPON (4) ------- Mini Smartbomb Launcher > --- INVENTORY (20) --- Combat Gravmag System Combat Antigrav System Antigrav Array Antigrav Array Large Storage Unit Experimental Energy Well (600) Improved Reaction Control System Relay Coupler [NC] (21) Relay Coupler [Grunt] (25) Relay Coupler [Sentry] (20) Advanced System Restoration Module Mapping Drone Bay (3/3) Peak State ------------ > --- POWER ------------ F-cell Engine Improved Fusion Compressor > --- PROPULSION ------- Combat Antigrav System Combat Antigrav System Antigrav Array Combat Linear Gravjet Combat Linear Gravjet Combat Linear Gravjet Combat Linear Gravjet > --- UTILITY ---------- Experimental Coolant Injector High-capacity Storage Unit Experimental Targeting Computer Core Analyzer Armor Integrity Analyzer Advanced Weapon Cycler Advanced Reaction Control System Layered Medium Armor Plating Advanced Hacking Suite Relay Coupler [Hunter] Relay Coupler [Behemoth] > --- WEAPON ----------- Improved Arc Thrower Improved Arc Thrower Improved Arc Thrower Advanced Remote Datajack > --- INVENTORY -------- Combat Antigrav System Antigrav Array Antigrav Array Large Storage Unit Experimental Energy Well Improved Reaction Control System Relay Coupler [NC] Relay Coupler [Grunt] Relay Coupler [Sentry] Relay Coupler [Sentry] Relay Coupler [Hunter] Advanced System Restoration Module Mapping Drone Bay Enhanced Nova Cannon Mini Smartbomb Launcher [Rating: 181] Favorites ----------- Power Micro Nuclear Core Engine Light Angular Momentum Engine Power Core Micro Nuclear Core Reactor Fusion Reactor Propulsion Combat Airjet Treads Armored Treads Leg Advanced Myomer Leg Wheel Armored Wheel Hover Unit Combat Airjet Flight Unit Improved VTOL Module Utility Armor Integrity Analyzer Device Structural Scanner Storage Large Storage Unit Processor Armor Integrity Analyzer Hackware Hacking Suite Protection Hardened Medium Armor Plating Weapon Improved Arc Projector Energy Gun Improved Arc Projector Energy Cannon Heavy Plasma Cannon Ballistic Gun Flak Gun Ballistic Cannon Advanced Assault Cannon Launcher Mini Smartbomb Launcher Special Weapon Remote Datajack Impact Weapon Great Maul Slashing Weapon Axe Special Melee Weapon Advanced Datajack Build | -11 -10 -10 -9 -9 -9 -8 -8 -8 -8 -8 -7 -7 -7 -7 -6 -6 -6 -6 -6 -6 -6 -5 -5 -5 -5 -5 -5 -4 -4 -4 -4 -4 -4 -3 -2 -1 ------- Run | Yrd Mat Min Mat Min Exi Min Mat Gar Mat Gar Fac Was Fac Gar Fac Was Fac Ext Cet Arc Hub Fac Was Fac Upp Upp Zhi Pro Fac Was Fac Arm Lab Res Res Acc Slots Evolved 18 | . . . 2 . . . 2 . . . 2 . . . 2 . . . . . . 2 . . . . . . 2 . . . . 2 2 2 Power 1 | . . . . . . . . . . . . . . . . . . . . . . . . . . . . . . . . . . 1 . . Propulsion 6 | . . . . . . . . . . . 2 . . . 1 . . . . . . 1 . . . . . . . . . . . . . 2 Utility 9 | . . . 1 . . . 2 . . . . . . . . . . . . . . 1 . . . . . . 2 . . . . 1 2 . Weapon 2 | . . . 1 . . . . . . . . . . . 1 . . . . . . . . . . . . . . . . . . . . . Parts Attached 930 | 7 35 . 100 13 . 7 13 18 11 31 127 9 51 25 91 1 53 21 5 8 14 53 . 27 14 4 10 7 41 7 9 12 . 62 24 20 Power 64 | 1 1 . 2 2 . . . 1 . 1 8 2 2 1 8 . 8 4 . . 1 6 . 4 2 . 1 . 2 . . . . 6 . 1 Engine 22 | 1 . . 2 1 . . . . . . 4 . . . 1 . 4 3 . . 1 1 . 1 2 . . . . . . . . 1 . . Core 37 | . 1 . . 1 . . . 1 . 1 4 2 2 1 7 . 3 1 . . . 5 . 3 . . . . 1 . . . . 3 . 1 Reactor 5 | . . . . . . . . . . . . . . . . . 1 . . . . . . . . . 1 . 1 . . . . 2 . . Propulsion 187 | 2 23 . 44 8 . . 1 . 1 4 21 1 12 . 17 . 6 . . 2 . 5 . 1 1 1 3 1 16 1 2 . . 11 . 3 Treads 37 | . 10 . 22 4 . . . . 1 . . . . . . . . . . . . . . . . . . . . . . . . . . . Leg 8 | . 1 . . . . . . . . 2 . . . . 2 . . . . . . . . . . . 3 . . . . . . . . . Wheel 41 | 2 12 . 22 4 . . 1 . . . . . . . . . . . . . . . . . . . . . . . . . . . . . Hover 96 | . . . . . . . . . . 2 18 . 11 . 15 . 6 . . 2 . 5 . 1 1 1 . 1 16 1 2 . . 11 . 3 Flight 5 | . . . . . . . . . . . 3 1 1 . . . . . . . . . . . . . . . . . . . . . . . Utility 242 | 2 4 . 4 2 . 2 6 3 2 7 30 2 11 8 21 . 22 7 2 4 . 14 . 10 7 3 3 3 15 1 3 4 . 22 11 7 Device 122 | 1 1 . 1 . . . 3 . . 2 14 1 7 6 6 . 13 3 . 3 . 8 . 7 7 2 . 3 8 . 2 2 . 14 4 4 Storage 13 | 1 2 . . . . . . . . 1 1 . . . 3 . 2 . . . . . . . . . . . 1 . . . . 1 . 1 Processor 14 | . . . . . . . 1 . . . 3 . . . 1 . 1 2 . . . . . . . . . . 2 . . 1 . 3 . . Hackware 57 | . . . . . . 1 . 3 1 2 11 1 3 1 8 . 4 1 . . . 5 . 2 . 1 . . 4 1 . . . 1 5 2 Protection 36 | . 1 . 3 2 . 1 2 . 1 2 1 . 1 1 3 . 2 1 2 1 . 1 . 1 . . 3 . . . 1 1 . 3 2 . Artifact . | . . . . . . . . . . . . . . . . . . . . . . . . . . . . . . . . . . . . . Weapon 437 | 2 7 . 50 1 . 5 6 14 8 19 68 4 26 16 45 1 17 10 3 2 13 28 . 12 4 . 3 3 8 5 4 8 . 23 13 9 Energy Gun 208 | 1 6 . 30 1 . . 4 6 3 12 23 2 12 8 20 1 9 3 2 1 6 15 . 4 3 . 3 1 2 4 1 5 . 9 7 4 Energy Cannon 30 | . . . . . . . . . . . . . . . 6 . 5 1 . . . 3 . 2 . . . 1 3 . 1 . . . 4 4 Ballistic Gun 11 | 1 1 . . . . . . . . . 1 . . . 6 . . 1 1 . . . . . . . . . . . . . . . . . Ballistic Cannon 58 | . . . . . . 2 2 2 . . 13 . 8 3 9 . . . . . 5 . . . . . . . 1 1 1 2 . 7 2 . Launcher 16 | . . . 4 . . 2 . 1 . 1 . . . . . . 1 1 . . 2 1 . . . . . 1 1 . . . . . . 1 Special Weapon 64 | . . . 13 . . . . 1 . . 19 2 1 . 1 . 2 4 . . . 6 . 6 1 . . . 1 . 1 1 . 5 . . Impact Weapon 20 | . . . 3 . . 1 . 2 2 3 9 . . . . . . . . . . . . . . . . . . . . . . . . . Slashing Weapon 1 | . . . . . . . . . . . 1 . . . . . . . . . . . . . . . . . . . . . . . . . Piercing Weapon . | . . . . . . . . . . . . . . . . . . . . . . . . . . . . . . . . . . . . . Special Melee Weapon 29 | . . . . . . . . 2 3 3 2 . 5 5 3 . . . . 1 . 3 . . . . . . . . . . . 2 . . Unidentified Prototypes 31 | . . . 3 . . . 2 . . . 5 . 1 . 1 . 6 . 3 . . 1 . . . . 3 . 2 . . 1 . 3 . . Corrupted Parts 2 | . . . . . . 1 . . . . . . . . . . . . . . . . . . 1 . . . . . . . . . . . System Corruption 13 | . . . . . . 3 . . . . . . . . . . . . . . . . . . 10 . . . . . . . . . . . Parts Lost 101 | . 3 . 10 4 . . . 1 1 5 8 . . . 14 . 9 9 . 2 . . . . 3 . . 5 12 . . . . 1 6 8 Power 10 | . . . 1 1 . . . . . 1 . . . . . . 2 1 . . . . . . 1 . . . 1 . . . . . 1 1 Propulsion 20 | . 1 . . 1 . . . . 1 2 4 . . . 4 . 1 . . 1 . . . . . . . 1 4 . . . . . . . Utility 29 | . 1 . 3 1 . . . 1 . 1 1 . . . 3 . 1 3 . . . . . . 1 . . 1 5 . . . . 1 4 2 Weapon 42 | . 1 . 6 1 . . . . . 1 3 . . . 7 . 5 5 . 1 . . . . 1 . . 3 2 . . . . . 1 5 Highest Loss Streak 8 | . 2 . 5 2 . . . 1 1 3 4 . . . 5 . 4 3 . 2 . . . . 2 . . 5 3 . . . . 1 4 8 To Critical Strikes 2 | . . . 1 . . . . . . . . . . . 1 . . . . . . . . . . . . . . . . . . . . . Average Slot Usage (%) 89 | . 95 100 98 85 66 71 81 92 99 97 94 74 91 98 77 93 85 84 90 90 100 93 94 93 88 94 82 83 84 98 100 98 94 97 93 94 Engine 2 | . 2 . 9 3 11 11 9 6 . . 2 . . . . . 1 3 6 6 6 . . . 2 5 1 . . . . . . 1 4 3 Core 3 | . 11 14 1 6 . . . 2 9 8 3 . 5 7 6 6 4 1 . . . 4 5 4 . . . . . 5 5 5 5 4 4 3 Leg 1 | . . . . . . . . . . 13 . . . . 2 . . . . . . . . . . . 10 17 4 . . . . . . . Wheel 4 | . 24 28 20 20 22 22 18 18 16 . . . . . . . . . . . . . . . . . . . . . . . . . . . Hover 18 | . . . . . . . . . . . 27 . 17 30 18 26 25 26 26 31 33 29 29 28 29 29 21 11 24 31 31 31 31 27 21 28 Flight 1 | . . . . . . . . . . . 1 23 11 . . . . . . . . . . . . . . . . . . . . . . . Device 6 | . 2 . 10 . . . 13 9 . . 7 . 2 4 3 . 4 5 . . 6 5 11 6 10 8 5 10 8 5 8 11 5 11 8 10 Storage 6 | . 14 14 11 11 11 11 9 9 9 9 7 7 7 7 6 6 6 6 6 6 6 5 5 5 5 5 5 5 4 5 5 5 5 4 4 4 Processor 7 | . . . . . . . . . . . 7 15 15 15 8 13 9 7 13 13 13 11 11 11 11 11 11 11 10 10 10 10 10 11 13 12 Hackware 8 | . . . . . . . 9 19 29 34 10 14 11 3 11 13 7 6 5 . . 5 5 9 . 2 5 5 10 19 12 5 5 2 11 12 Protection 4 | . 10 14 10 10 11 15 13 7 6 . 2 . . 6 . . . 2 6 5 6 4 . . 5 5 4 . . . 4 7 10 9 7 3 Energy Gun 11 | . 23 28 29 22 . . . 13 22 21 12 5 10 19 6 17 12 8 1 6 9 11 17 16 12 17 2 1 1 14 6 11 15 12 11 11 Energy Cannon 1 | . . . . . . . . . . . . . . . . 2 5 4 4 . . 4 . 3 4 . . 4 4 . 4 . . . . . Ballistic Cannon 1 | . . . . . . 10 8 3 . . 1 . 2 . 3 . . . . . 2 . . . . . . . 2 . 4 3 . . . . Special Weapon 2 | . . . 2 . . . . . . . 2 5 1 . 1 6 5 3 6 . . . 5 2 2 5 5 5 1 5 5 4 5 3 4 3 Peak Build Rating 181 | 8 16 15 27 28 21 46 53 54 46 46 59 39 55 54 74 73 76 80 87 89 85 102 92 94 98 99 105 110 114 112 120 121 112 152 163 181 Average Rating 68 | 6 13 15 23 25 15 40 50 43 42 39 44 32 44 52 55 72 64 66 75 79 83 94 92 91 88 94 85 86 98 110 114 118 112 138 158 174 On Entrance 68 | . 8 15 15 27 21 17 46 52 42 46 36 30 33 53 53 72 73 71 65 81 85 76 92 92 94 94 94 105 94 111 110 118 112 112 152 133 Naked Turns . | . . . . . . . . . . . . . . . . . . . . . . . . . . . . . . . . . . . . . Heaviest Build 158 | 13 92 92 110 112 100 156 158 156 107 102 34 25 34 35 49 49 56 56 55 54 57 65 55 63 66 57 59 60 58 63 71 75 72 85 85 105 Greatest Support 114 | 26 40 24 24 46 24 24 24 24 24 20 36 14 41 34 54 54 56 56 56 56 54 73 66 66 66 66 90 90 90 78 78 78 78 86 82 114 Greatest Overweight (x) 8 | 1 3 3 4 4 4 6 6 6 8 8 1 1 1 1 2 . 1 . . 1 1 1 . . . . . . . . . . . . 1 1 Average Overweight (x) . | . 2 3 3 3 3 6 5 4 4 4 . . . . . . . . . . . . . . . . . . . . . . . . . . Largest Inventory Capacity 25 | 8 25 25 25 25 25 25 25 25 25 25 15 10 10 10 15 15 15 15 15 15 15 15 15 15 15 15 15 15 15 15 15 15 15 15 15 20 Average Capacity 16 | 7 21 25 25 25 25 25 25 25 25 24 10 10 10 10 13 15 15 15 15 15 15 15 15 15 15 15 15 15 14 15 15 15 15 15 15 19 Most Carried 25 | 8 15 15 25 20 24 24 25 25 25 25 14 10 10 10 15 15 15 14 15 15 15 15 15 15 15 15 15 15 15 15 15 15 14 15 15 17 Average Carried 14 | 6 12 15 23 18 22 22 23 24 24 23 9 9 9 9 12 14 14 9 13 14 15 14 15 14 13 14 14 12 13 14 14 14 14 14 13 15 Final Capacity 25 | 8 25 25 25 25 25 25 25 25 25 15 10 10 10 10 15 15 15 15 15 15 15 15 15 15 15 15 15 15 15 15 15 15 15 15 15 20 Final Carried 25 | 8 15 15 20 19 24 23 25 25 25 15 10 10 10 10 15 15 15 10 15 15 15 15 15 15 15 15 15 11 15 15 15 14 14 15 12 16 Class Distribution -------------------- 18% | Bothacker-Gunner 12% | Bothacker-Mutant 11% | Mutant 10% | Bothacker-Skirmisher 9% | Tank 7% | Machinist-Gunner 6% | Bothacker-Sprinter 5% | Scavenger-Gunner 5% | Hacker-Gunner Dominant Class ---------------- Mutant | -10/Materials Mutant | -10/Mines Tank | -9/Materials Mutant | -9/Mines Mutant | -9/Exiles Skirmisher | -8/Mines Tank | -8/Materials Bothacker-Skirmisher | -8/Garrison Bothacker-Skirmisher | -8/Materials Bothacker-Skirmisher | -8/Garrison Bothacker-Mutant | -7/Factory Bothacker-Mutant | -7/Waste Sprinter | -7/Factory Bothacker-Sprinter | -7/Garrison Bothacker-Mutant | -6/Factory Machinist-Gunner | -6/Waste Bothacker-Skirmisher | -6/Factory Scavenger-Skirmisher | -6/Extension Commander-Gunner | -6/Cetus Scavenger-Gunner | -6/Archives Scavenger-Gunner | -6/Hub_04(d) Scavenger-Gunner | -5/Factory Bothacker-Gunner | -5/Waste Bothacker-Gunner | -5/Factory Machinist-Gunner | -5/Upper Caves Machinist-Gunner | -5/Upper Caves Mutant | -5/Zhirov Mutant | -4/Proximity Caves Hacker-Gunner | -4/Factory Hacker-Gunner | -4/Waste Bothacker-Gunner | -4/Factory Bothacker-Gunner | -4/Armory Bothacker-Gunner | -4/Lab Bothacker-Gunner | -3/Research Bothacker-Gunner | -2/Research Bothacker-Gunner | -1/Access Resources | -11 -10 -10 -9 -9 -9 -8 -8 -8 -8 -8 -7 -7 -7 -7 -6 -6 -6 -6 -6 -6 -6 -5 -5 -5 -5 -5 -5 -4 -4 -4 -4 -4 -4 -3 -2 -1 ----------- Run | Yrd Mat Min Mat Min Exi Min Mat Gar Mat Gar Fac Was Fac Gar Fac Was Fac Ext Cet Arc Hub Fac Was Fac Upp Upp Zhi Pro Fac Was Fac Arm Lab Res Res Acc Matter Collected 14609 | 324 373 . 933 201 . 67 170 187 60 325 1786 313 698 346 1816 . 815 507 130 256 109 883 . 40 318 229 . 338 936 230 228 256 . 928 437 370 Remotely . | . . . . . . . . . . . . . . . . . . . . . . . . . . . . . . . . . . . . . Salvage Created 23352 | 327 1071 257 3876 432 . 28 633 355 60 372 2038 . 435 1060 1845 . 1493 1166 164 463 54 1124 . 226 . 49 . 238 1573 . 416 280 . 1410 1294 613 Parts 1159 | 36 68 12 243 18 . 4 43 30 7 21 101 . 20 28 82 . 69 48 8 21 10 51 . 11 . 2 . 14 75 . 14 9 . 38 55 21 Haulers Intercepted 33 | . 2 . 6 . . . . . . . 5 . 4 . 3 . 3 . . . . 2 . . . . . . 2 . 1 . . 4 . 1 Recyclers Shooed 28 | 1 1 . 2 1 . . . . . . 4 . . . 8 . 1 . . . . 1 . 1 . . . . 2 . 2 . . 1 3 . Parts Field Recycled 3 | . . . . . . . . . . . . . . . 3 . . . . . . . . . . . . . . . . . . . . . Retrieved Matter 8 | . . . . . . . . . . . . . . . 8 . . . . . . . . . . . . . . . . . . . . . Parts Self-Destructed 11 | . . . . . . . . . . . . . . . . . . . . . . . . . . . . 11 . . . . . . . . Prevented 3 | . . . . . . . . . . . . . . . . . . . . . . . . . 1 . . 2 . . . . . . . . Kills | -11 -10 -10 -9 -9 -9 -8 -8 -8 -8 -8 -7 -7 -7 -7 -6 -6 -6 -6 -6 -6 -6 -5 -5 -5 -5 -5 -5 -4 -4 -4 -4 -4 -4 -3 -2 -1 ------- Run | Yrd Mat Min Mat Min Exi Min Mat Gar Mat Gar Fac Was Fac Gar Fac Was Fac Ext Cet Arc Hub Fac Was Fac Upp Upp Zhi Pro Fac Was Fac Arm Lab Res Res Acc Combat Hostiles Destroyed 225 | . 9 . 51 8 . 4 13 15 1 7 13 . 2 5 13 . 13 13 2 1 4 12 . 2 . . . 7 20 . . 1 . 3 5 1 Melee 6 | . . . . 5 . . . . . . 1 . . . . . . . . . . . . . . . . . . . . . . . . . Guns 85 | . 8 . 34 2 . . . 2 1 5 3 . 1 4 9 . 2 3 1 1 . 5 . 1 . . . 2 . . . . . . 1 . Cannons 55 | . . . . . . . 13 11 . . . . . . 3 . 7 3 . . . 3 . . . . . 2 12 . . . . . 1 . AOE 53 | . 1 . 16 1 . 3 . 2 . 1 6 . 1 1 . . 4 4 . . 4 . . . . . . 3 5 . . 1 . . . . Classes Destroyed 20 | 3 4 . 7 1 . . 1 . . 1 1 . . . . . . . . . . . . . . 1 . 1 . . . . . . . . Worker 41 | 2 3 1 16 2 . . . . . . 3 . . . 4 . 3 . . . 1 1 . . . . . . 2 . 2 . . . 1 . Builder 33 | . 7 1 7 . . . 1 . . . 2 . . . 3 . 5 3 . . . 1 . . . . . . . . 1 . . . 1 1 Tunneler 17 | 9 2 1 2 2 . . . . . . . . . . . . . 1 . . . . . . . . . . . . . . . . . . Hauler 33 | . 2 . 6 . . . . . . . 5 . 4 . 3 . 3 . . . . 2 . . . . . . 2 . 1 . . 4 . 1 Recycler 51 | 1 3 2 8 2 . . 2 . . . 9 . . . 6 . 2 3 . . . 1 . . . . . . 3 . 1 . . 3 4 1 Mechanic 7 | . . . 1 . . . . . . . 2 . . . 1 . 3 . . . . . . . . . . . . . . . . . . . Operator 16 | . . . 1 . . . . . . . 1 . . . 1 . . . . 9 . . . . . . . . . . 1 1 . 2 . . Drone 2 | . . . . . . . . . . . . . . . . . . . . . . . . . . . . 2 . . . . . . . . Watcher 48 | . 3 . 5 . . . 4 . . . 3 . 2 . 4 . 3 2 1 . . 3 . 2 . . . . 3 . 1 . . 3 3 6 Swarmer 49 | . . . 6 1 . 4 3 5 . . . . . 4 6 . 6 2 . . 4 3 . . . . . . 5 . . . . . . . Cutter 1 | . . . . . . . . . . 1 . . . . . . . . . . . . . . . . . . . . . . . . . . Grunt 84 | . 9 . 31 5 . . 3 . . 3 6 . . 1 2 . 3 7 . . . 4 . 1 . . . 4 4 . . 1 . . . . Brawler 3 | . . . 2 . . . . . . . . . . . . . . 1 . . . . . . . . . . . . . . . . . . Duelist 1 | . . . 1 . . . . . . . . . . . . . . . . . . . . . . . . . . . . . . . . . Protector 2 | . . . 2 . . . . . . . . . . . . . . . . . . . . . . . . . . . . . . . . . Sentry 48 | . . . 9 . . . 4 10 1 2 5 . 2 . 1 . . 2 . 1 . 1 . 1 . . . 1 1 . . 2 . 3 2 . Hunter 14 | . . . . . . . 3 . . 1 . . . . . . . . . . . 1 . . . . . . 5 . . . . . 3 1 Programmer 22 | . . . . . . . . . . . 4 . . . 4 . 4 1 . . . 3 . . . . . . 5 . . . . . 1 . Cetus Guard 2 | . . . . . . . . . . . . . . . . . . . 2 . . . . . . . . . . . . . . . . . Samaritan 2 | . . . . . . . . . . . . . . . . . . . . . . . . . . 1 . 1 . . . . . . . . Assembled 2 | . . . . 2 . . . . . . . . . . . . . . . . . . . . . . . . . . . . . . . . Savage 1 | . . . . . . . . . . . . . . . . . . . . 1 . . . . . . . . . . . . . . . . Best Kill Streak 12 | 4 3 3 12 3 . 4 6 5 1 3 4 . 1 3 2 . 11 10 1 4 3 2 . 1 . . . 6 5 . 2 1 . 2 3 3 Combat Bots Only 8 | . 3 . 8 2 . 4 3 5 1 3 4 . 1 3 2 . 7 5 1 1 2 2 . 1 . . . 6 5 . . 1 . 1 2 1 Max Kills in Single Turn 4 | 2 1 1 4 1 . 3 2 2 1 1 4 . 1 2 1 . 4 3 1 1 3 2 . 1 . 1 . 2 4 . 1 1 . 2 1 1 Gunslinging 1 | . . . 1 . . . . . . . . . . 1 . . . . . . . . . . . . . . . . . . . . . . Exploded 4 | . 1 . 2 1 . 3 . 2 . 1 4 . 1 1 . . 2 2 . . 2 . . . . . . 2 4 . . 1 . . . . Melee 1 | . . . . 1 . . . . . . 1 . . . . . . . . . . . . . . . . . . . . . . . . . Uniques/NPCs Destroyed . | . . . . . . . . . . . . . . . . . . . . . . . . . . . . . . . . . . . . . Combat | -11 -10 -10 -9 -9 -9 -8 -8 -8 -8 -8 -7 -7 -7 -7 -6 -6 -6 -6 -6 -6 -6 -5 -5 -5 -5 -5 -5 -4 -4 -4 -4 -4 -4 -3 -2 -1 -------- Run | Yrd Mat Min Mat Min Exi Min Mat Gar Mat Gar Fac Was Fac Gar Fac Was Fac Ext Cet Arc Hub Fac Was Fac Upp Upp Zhi Pro Fac Was Fac Arm Lab Res Res Acc Hostile Shots Fired 1979 | . 72 . 148 48 . 7 18 66 6 65 232 . 44 42 194 . 212 181 6 4 7 60 . 11 100 3 . 42 149 . 18 5 . 30 69 140 Missed 806 | . 19 . 39 11 . 3 4 21 1 13 124 . 25 18 61 . 89 99 2 . 2 28 . 4 45 1 . 14 67 . 13 3 . 18 32 50 Damage Taken 19406 | . 816 . 1752 562 . 31 152 696 48 762 1227 . 217 306 2161 . 1704 1033 71 93 107 657 . 160 1239 37 . 613 1850 . 119 51 . 456 820 1666 Core 2707 | . 122 . 278 42 . 7 33 11 15 132 240 . 51 73 304 . 228 123 . . . 132 . 23 111 . . 40 368 . 27 23 . 47 21 256 Absorbed by Shields 393 | . . . . . . . 58 66 . 70 . . . 32 . . . 99 68 . . . . . . . . . . . . . . . . . Redirected to Shielding 333 | . 1 . . . . . . . . . . . . . . . . . . . . . . . . . . . . . . . . 136 196 . Regen/Repaired (Parts) 1049 | . . . . . . . 103 . . . . . . . 106 . 83 . . . . 41 . 65 . . . . 429 . 211 . . 11 . . Core Remaining (%) 64 | 100 . 51 . . . 18 . . . 65 . . . 48 . . . . . . 22 . . . . . . 69 . . . . 58 96 98 84 Volleys Fired 2351 | 18 93 6 140 17 . 1 1 8 5 22 269 100 84 63 332 9 253 94 10 46 16 118 . 49 17 11 3 23 178 83 48 35 . 76 73 50 Largest 4 | 2 2 2 3 2 . 2 3 3 3 3 3 1 3 3 3 3 4 4 3 2 3 4 . 4 3 3 1 3 2 3 2 4 . 4 3 3 Hottest 360 | 60 90 90 135 120 . 60 140 140 165 140 165 55 165 165 220 195 260 285 143 115 293 260 . 260 195 195 7 195 141 270 130 360 . 360 270 270 Shots Fired 3609 | 36 141 12 399 31 . 2 42 64 7 40 329 100 108 123 415 17 279 169 24 87 21 186 . 90 39 25 4 27 187 129 56 51 . 160 119 90 Gun 2580 | 36 141 12 393 31 . . 3 12 7 35 214 88 70 114 290 17 153 110 19 85 5 114 . 76 37 21 1 12 23 114 37 23 . 135 89 63 Cannon 782 | . . . . . . . 39 50 . . 75 . 38 9 111 . 96 39 5 . 14 57 . 9 1 . . 10 157 4 14 12 . 15 12 15 Launcher 36 | . . . 6 . . 2 . 2 . 5 . . . . . . 3 4 . . 2 3 . . . . . 5 3 . . . . . . 1 Special 211 | . . . . . . . . . . . 40 12 . . 14 . 27 16 . 2 . 12 . 5 1 4 3 . 4 11 5 16 . 10 18 11 Kinetic 638 | 18 11 . . . . . 39 50 . . 77 . 38 9 187 . . 17 15 44 16 3 . . . . . . 66 4 11 12 . 15 6 . Thermal 470 | . 17 . . 14 . . . . . . 2 . . . 38 . 107 67 9 41 3 72 . 9 1 . . 10 59 . . . . . 6 15 Explosive 28 | . . . 5 . . 2 . . . . . . . . . . 3 4 . . 2 3 . . . . . 5 3 . . . . . . 1 Electromagnetic 2262 | 18 113 12 394 17 . . 3 14 7 40 210 88 70 114 176 17 142 65 . . . 96 . 76 37 21 1 12 55 114 40 23 . 135 89 63 Robot Hit Streak 49 | 17 7 6 13 4 . . 7 38 4 10 15 11 8 49 14 21 10 13 6 6 1 10 . 12 5 5 8 9 10 18 9 10 . 15 26 14 Robot Miss Streak 8 | 1 4 1 5 6 . 1 6 2 3 5 4 2 6 5 4 2 7 8 3 4 5 3 . 3 2 4 . 2 5 3 2 4 . 8 4 4 Penetration Max 1 | . . . . . . . . . . . . . . . . . . . 1 1 . . . . . . . . . . . . . . . . Secondary Targets 10 | . 1 . 5 . . . . 1 . . . . . 1 1 . . 1 . . . . . . . . . . . . . . . . . . Max Gunslinging Chain 1 | . 1 . 1 . . . . 1 . . . . . 1 1 . . 1 . . . . . . . . . . . . . . . . . . Autonomous 90 | . . . . . . . 39 51 . . . . . . . . . . . . . . . . . . . . . . . . . . . . Shots Hit Robots 2277 | 28 75 7 261 36 . 1 29 60 6 34 194 80 49 95 216 12 129 107 17 47 1 107 . 55 25 15 3 14 92 114 30 34 . 140 100 64 Core Hits 1290 | 13 34 5 164 15 . 2 18 15 2 18 65 12 18 41 92 4 68 50 24 22 10 47 . 23 14 6 . 16 78 10 16 32 . 158 124 74 Critical Kills 3 | . . . . . . . . . . . . . . . . . . 1 1 1 . . . . . . . . . . . . . . . . Critical Parts Destroyed 13 | . . . . 4 . . . . . . 2 . . . 1 . . . 2 4 . . . . . . . . . . . . . . . . Critical Strikes 37 | 1 7 . . 5 . . 4 4 . . 2 . . . 1 . . 2 3 5 . . . . . . . . 3 . . . . . . . Burn 4 | . 2 . . 1 . . . . . . . . . . . . . 1 . . . . . . . . . . . . . . . . . . Meltdown 2 | . . . . . . . . . . . . . . . . . . 1 1 . . . . . . . . . . . . . . . . . Destroy 8 | . . . . . . . . . . . . . . . 1 . . . 2 5 . . . . . . . . . . . . . . . . Blast 11 | . . . . . . . 4 4 . . . . . . . . . . . . . . . . . . . . 3 . . . . . . . Corrupt 6 | 1 5 . . . . . . . . . . . . . . . . . . . . . . . . . . . . . . . . . . . Smash 6 | . . . . 4 . . . . . . 2 . . . . . . . . . . . . . . . . . . . . . . . . . Melee Attacks 168 | . . . 4 22 . 2 . 31 5 14 54 . 6 7 14 . . . . . . 7 . . . . . . . . . . . 2 . . Impact 101 | . . . 4 22 . 2 . 23 2 4 44 . . . . . . . . . . . . . . . . . . . . . . . . . Slashing 9 | . . . . . . . . . . . 9 . . . . . . . . . . . . . . . . . . . . . . . . . Piercing . | . . . . . . . . . . . . . . . . . . . . . . . . . . . . . . . . . . . . . Sneak Attacks 39 | . . . . 5 . . . 2 1 3 6 . 2 3 9 . . . . . . 6 . . . . . . . . . . . 2 . . Combat Hostiles 15 | . . . . . . . . . . . 1 . 2 3 8 . . . . . . 1 . . . . . . . . . . . . . . Follow-up Attacks 3 | . . . . . . . . . . . 3 . . . . . . . . . . . . . . . . . . . . . . . . . Damage Inflicted 47771 | 359 1435 114 5361 1401 . 170 1999 3829 38 559 3884 43 651 1067 3436 40 2639 3265 457 1303 675 2044 . 830 258 175 . 1122 3675 40 547 485 . 2505 1909 1456 Guns 26617 | 359 1160 114 4101 420 . . 42 109 38 407 1573 43 566 1034 2727 40 1547 1263 362 1303 . 1356 . 763 258 175 . 120 401 40 471 402 . 2421 1804 1198 Cannons 10734 | . . . . . . . 1927 3674 . . 60 . . . 285 . 480 828 95 . 56 500 . . . . . 207 2441 . 76 . . . 105 . Explosions 7920 | . 275 . 1194 71 . 121 30 46 . 152 1013 . 85 33 245 . 576 1174 . . 597 188 . 67 . . . 795 833 . . 83 . 84 . 258 Melee 2263 | . . . 66 910 . 49 . . . . 1238 . . . . . . . . . . . . . . . . . . . . . . . . . Ramming 237 | . . . . . . . . . . . . . . . 179 . 36 . . . 22 . . . . . . . . . . . . . . . Kinetic 9316 | 157 48 . . . . . 1927 3674 . . 66 . . . 1556 . . 195 324 745 56 . . . . . . . 568 . . . . . . . Thermal 8666 | . 400 . 929 282 . . 30 . . . 1054 . 85 33 279 . 670 1412 133 558 . 835 . 67 . . . 207 1245 . . . . 84 105 258 Explosive 4387 | . . . 261 . . 121 . . . . . . . . . . 576 1059 . . 597 188 . . . . . 752 833 . . . . . . . Electromagnetic 22902 | 202 987 114 4105 209 . . 42 155 38 559 1526 43 566 1034 1422 40 1357 599 . . . 1021 . 763 258 175 . 163 1029 40 547 485 . 2421 1804 1198 Impact 1982 | . . . 66 910 . 49 . . . . 957 . . . . . . . . . . . . . . . . . . . . . . . . . Slashing 281 | . . . . . . . . . . . 281 . . . . . . . . . . . . . . . . . . . . . . . . . Piercing . | . . . . . . . . . . . . . . . . . . . . . . . . . . . . . . . . . . . . . Highest Corruption 27 | . 1 1 5 5 5 8 . . . . 1 1 4 . 8 27 27 1 . . 2 2 11 11 21 21 21 21 3 3 3 3 . 3 1 1 Average Corruption 5 | . 1 1 5 5 5 5 . . . . 1 1 1 . 6 18 11 1 . . 2 1 8 11 13 21 21 21 2 3 3 2 . 3 1 1 Corruption Purged 43 | . . . . . . . . . . . 1 . 5 . . . 31 1 . . . . . . . . . . 1 . . 3 . . 1 . Corruption Blocked . | . . . . . . . . . . . . . . . . . . . . . . . . . . . . . . . . . . . . . Effects 472 | . 3 1 5 20 6 7 . . . . 12 6 2 . 104 11 72 3 . . 2 6 3 28 28 27 9 22 26 13 15 4 . 32 . 5 Message Errors 111 | . . 1 2 6 3 3 . . . . 1 2 . . 22 4 13 . . . 1 . 1 5 7 7 3 5 5 4 3 2 . 11 . . Matter Fused 86 | . . . . . . 2 . . . . 3 3 . . 24 1 16 1 . . . 1 . 5 6 3 1 4 5 1 3 . . 6 . 1 Heat Flow Errors 56 | . 2 . 1 3 . . . . . . 5 . 2 . 12 . 10 . . . . 1 . 6 3 . . 3 1 2 2 . . 3 . . Energy Discharges 61 | . . . . 3 . 1 . . . . . . . . 16 . 13 . . . . 2 1 1 2 3 3 2 4 3 1 . . 4 . 2 Parts Rejected 9 | . . . . 1 . . . . . . . . . . 3 . 1 . . . . . . . 1 1 . . . 1 1 . . . . . Parts Fused 9 | . . . . 1 . . . . . . . . . . . . . . . . 1 . . 1 . 1 . 1 . 1 . 1 . 2 . . Data Loss (minor) 68 | . 1 . 1 3 3 1 . . . . . 1 . . 13 1 8 1 . . . 2 . 9 2 8 1 4 3 1 1 1 . 2 . 1 Data Loss (major) 23 | . . . . . . . . . . . 1 . . . 4 . 3 1 . . . . . 1 1 4 . 1 2 . 2 . . 3 . . Misfires 15 | . . . . 2 . . . . . . . . . . 4 . . . . . . . . . . . 1 1 3 . 2 . . 1 . 1 Alerts 11 | . . . 1 1 . . . . . . 1 . . . 2 . 2 . . . . . . . 2 . . . 2 . . . . . . . Misdirections 7 | . . . . . . . . . . . . . . . . 3 1 . . . . . 1 . 2 . . . . . . . . . . . Weapon Failures 16 | . . . . . . . . . . . 1 . . . 4 2 5 . . . . . . . 2 . . 1 1 . . . . . . . Overload Shots 1 | . . . . . . . . . . . . . . . . . . . . . 1 . . . . . . . . . . . . . . . Overflow Damage 1773 | . 13 . 42 320 . 61 138 241 . . 569 . 2 . . . 62 121 . . 11 31 . . . . . 23 98 . . . . . 17 24 Projectiles 530 | . . . . . . . 138 241 . . . . . . . . 8 26 . . . 31 . . . . . . 69 . . . . . 17 . Explosions 538 | . 13 . 42 . . 30 . . . . 215 . 2 . . . 54 95 . . 11 . . . . . . 23 29 . . . . . . 24 Melee 705 | . . . . 320 . 31 . . . . 354 . . . . . . . . . . . . . . . . . . . . . . . . . Knockbacks 29 | . . . . 2 . . 5 5 . . 9 . . . 4 . 1 . . . . . . . . . . . 3 . . . . . . . Impact 16 | . . . . 2 . . . . . . 9 . . . 4 . 1 . . . . . . . . . . . . . . . . . . . Kinetic 12 | . . . . . . . 5 4 . . . . . . . . . . . . . . . . . . . . 3 . . . . . . . Secondary 1 | . . . . . . . . 1 . . . . . . . . . . . . . . . . . . . . . . . . . . . . Self-Inflicted Damage 594 | . 46 . 310 36 . . . . . 19 10 . 35 17 65 . 18 . . . 11 . . . . . . . 27 . . . . . . . Shots 20 | . 1 . 10 2 . . . . . 1 1 . 1 1 2 . . . . . . . . . . . . . 1 . . . . . . . Rammed 2 | . . . . . . . . . . . . . . . . . 1 . . . 1 . . . . . . . . . . . . . . . Targets Rammed 37 | . . . . . . . . . . . . . . . 35 . 1 . . . 1 . . . . . . . . . . . . . . . Kicked 35 | . . . . . . . . . . . . . . . 35 . . . . . . . . . . . . . . . . . . . . . Crushed . | . . . . . . . . . . . . . . . . . . . . . . . . . . . . . . . . . . . . . Highest Temperature 506 | . 314 72 436 328 . . 33 193 111 295 330 24 275 315 356 128 468 288 226 212 219 354 . 312 331 296 . 293 353 324 247 279 . 314 199 506 Average Temperature 82 | . 85 34 86 119 . . 22 92 36 122 79 11 57 96 69 47 66 101 81 78 108 69 . 81 101 124 . 118 64 107 60 82 . 77 74 132 Received Heat Transfer 3877 | . 444 . 714 186 . . 12 216 9 213 198 . 69 107 264 . 303 261 . 18 45 90 . 36 306 . . 136 157 . 18 21 . 36 18 . Effects 42 | . 2 . 4 3 . . . . . . 2 . . . 1 . 10 1 . . . 4 . 1 1 1 . 1 . 3 . . . 1 . 7 Shutdowns 6 | . . . . . . . . . . . . . . . . . 3 . . . . 1 . . . . . . . . . . . . . 2 Energy Bleed 10 | . . . 1 1 . . . . . . 2 . . . . . . 1 . . . . . . . . . 1 . 1 . . . 1 . 2 Interference 23 | . 2 . 2 1 . . . . . . . . . . 1 . 7 . . . . 3 . . 1 1 . . . 2 . . . . . 3 Short Circuit 3 | . . . 1 1 . . . . . . . . . . . . . . . . . . . 1 . . . . . . . . . . . . Siege Activations . | . . . . . . . . . . . . . . . . . . . . . . . . . . . . . . . . . . . . . Robots Corrupted 49 | . 1 . 1 2 . 1 . . . 1 7 . 1 6 2 . 1 2 . . . 4 . 1 . . . 1 3 . 1 2 . 5 6 1 Combat Hostiles 23 | . . . 1 . . 1 . . . 1 3 . . . 1 . . 1 . . . 4 . 1 . . . . 3 . . . . 3 3 1 Parts Fried 192 | . 10 . 27 7 . . . 1 . 5 25 . 1 18 8 . 12 4 . . . 7 . 3 . 1 . 3 6 . 5 6 . 25 10 8 Impact Corruptions 23 | . . . . 9 . 2 . . . . 12 . . . . . . . . . . . . . . . . . . . . . . . . . Robots Melted 3 | . . . . . . . . . . . . . . . . . . 2 1 . . . . . . . . . . . . . . . . . Combat Hostiles 3 | . . . . . . . . . . . . . . . . . . 2 1 . . . . . . . . . . . . . . . . . Parts Melted 16 | . 2 . 2 . . . . . . . . . . . 1 . 1 4 2 . . 4 . . . . . . . . . . . . . . Heat Transferred 10916 | . 768 . 1151 594 . . . . . . 874 . 100 . 400 . 959 2071 224 777 . 1131 . 50 . . . 222 1221 . . . . 100 74 200 Parts Sabotaged . | . . . . . . . . . . . . . . . . . . . . . . . . . . . . . . . . . . . . . Parts Stolen . | . . . . . . . . . . . . . . . . . . . . . . . . . . . . . . . . . . . . . Parts Stripped . | . . . . . . . . . . . . . . . . . . . . . . . . . . . . . . . . . . . . . Power Chain Reactions 49 | . 6 . 16 2 . . 1 . . . 6 . 2 1 5 . . 1 . . . . . 1 . . . 1 . . . 1 . 2 . 4 Alert | -11 -10 -10 -9 -9 -9 -8 -8 -8 -8 -8 -7 -7 -7 -7 -6 -6 -6 -6 -6 -6 -6 -5 -5 -5 -5 -5 -5 -4 -4 -4 -4 -4 -4 -3 -2 -1 ------- Run | Yrd Mat Min Mat Min Exi Min Mat Gar Mat Gar Fac Was Fac Gar Fac Was Fac Ext Cet Arc Hub Fac Was Fac Upp Upp Zhi Pro Fac Was Fac Arm Lab Res Res Acc Peak Influence 1825 | 60 505 165 1825 1194 . 123 262 981 477 778 1230 442 615 622 398 96 294 429 412 275 544 387 111 189 . . . . 391 90 849 185 . 245 169 340 Initial 1100 | . 39 134 64 1100 . . 47 100 477 285 408 430 64 298 315 96 61 78 201 164 . 226 99 58 . . . . 150 86 . 169 . . 9 61 Average 290 | 25 353 153 801 1138 . 107 94 555 382 429 552 284 291 469 160 84 108 143 311 140 208 155 91 81 . . . . 190 44 406 129 . 81 62 170 Maximum Alert Level 5 | . 2 . 5 4 . . 1 3 2 3 4 2 2 2 1 . 1 2 2 1 2 1 . . . . . . 1 . 3 . . 1 . 1 Low Security (%) 49 | 100 8 100 5 . . 100 89 6 . . . 23 32 . 63 100 97 72 . 67 45 64 100 100 . . . . 56 100 17 100 . 90 100 55 Level 1 26 | . 52 . 20 . . . 10 22 42 45 32 38 43 37 36 . 2 20 79 32 34 35 . . . . . . 43 . 35 . . 9 . 44 Level 2 15 | . 39 . 29 . . . . 52 57 49 43 38 23 62 . . . 6 20 . 19 . . . . . . . . . 33 . . . . . Level 3 4 | . . . 13 21 . . . 18 . 5 23 . . . . . . . . . . . . . . . . . . . 13 . . . . . Level 4 3 | . . . 24 78 . . . . . . . . . . . . . . . . . . . . . . . . . . . . . . . . Level 5 . | . . . . . . . . . . . . . . . . . . . . . . . . . . . . . . . . . . . . . High Security . | . . . 5 . . . . . . . . . . . . . . . . . . . . . . . . . . . . . . . . . Max Security . | . . . . . . . . . . . . . . . . . . . . . . . . . . . . . . . . . . . . . Sterilizations 1 | . . . 1 . . . . . . . . . . . . . . . . . . . . . . . . . . . . . . . . . Squads Dispatched 166 | . 1 . 8 . . . 2 . 2 . 19 . 19 . 16 . 22 3 . . 8 13 . 6 . . . . 13 . 11 2 . 10 5 6 Investigation 68 | . 1 . 3 . . . 2 . 2 . 4 . 8 . 5 . 6 3 . . 4 4 . 3 . . . . 8 . 5 1 . 7 . 2 Extermination 26 | . . . . . . . . . . . 6 . 2 . 5 . 4 . . . . 2 . . . . . . 4 . 2 . . . 1 . Reinforcement 45 | . . . 1 . . . . . . . 2 . 3 . 6 . 9 . . . 4 1 . 2 . . . . 1 . 4 1 . 3 4 4 Assault 6 | . . . 4 . . . . . . . 2 . . . . . . . . . . . . . . . . . . . . . . . . . Garrison 21 | . . . . . . . . . . . 5 . 6 . . . 3 . . . . 6 . 1 . . . . . . . . . . . . Intercept . | . . . . . . . . . . . . . . . . . . . . . . . . . . . . . . . . . . . . . Searches Triggered 1 | . . . . . . . . . . . . . 1 . . . . . . . . . . . . . . . . . . . . . . . Construction Impeded 6 | . . . . . . . . . . . 1 . . . 1 . 2 . . . . . . . . . . . . . 1 . . . 1 . Haulers Reinforced 15 | . . . . . . . . . . . 1 . 1 . 3 . . . . . 1 1 . 2 . . . . 1 . 2 . . 1 . 2 Active Scanning Responses . | . . . . . . . . . . . . . . . . . . . . . . . . . . . . . . . . . . . . . Cargo Convoy Interrupts 2 | . . . . . . . . . . . . . 1 . . . 1 . . . . . . . . . . . . . . . . . . . Stealth | -11 -10 -10 -9 -9 -9 -8 -8 -8 -8 -8 -7 -7 -7 -7 -6 -6 -6 -6 -6 -6 -6 -5 -5 -5 -5 -5 -5 -4 -4 -4 -4 -4 -4 -3 -2 -1 --------- Run | Yrd Mat Min Mat Min Exi Min Mat Gar Mat Gar Fac Was Fac Gar Fac Was Fac Ext Cet Arc Hub Fac Was Fac Upp Upp Zhi Pro Fac Was Fac Arm Lab Res Res Acc Distress Signals 46 | . 2 . 5 . . . 1 . . . 5 . 4 . 5 . . 3 2 . 5 1 . . . . . . 1 . 2 2 . 5 2 1 Communications Jammed . | . . . . . . . . . . . . . . . . . . . . . . . . . . . . . . . . . . . . . Distress Signals . | . . . . . . . . . . . . . . . . . . . . . . . . . . . . . . . . . . . . . Times Spotted 686 | . 15 . 67 11 . 4 10 23 6 14 68 5 32 12 42 6 69 46 10 21 17 33 6 13 14 3 . 6 27 8 18 9 . 28 22 21 Peak Tracking Total 13 | . 5 . 7 3 . 4 3 5 2 3 8 4 5 4 3 6 9 8 5 2 13 4 6 6 7 7 . 4 5 5 8 7 . 3 5 5 Tactical Retreats 89 | . 2 . 1 3 . . 1 . . . 20 . 5 5 6 . 11 6 . . 1 4 . 2 7 . . . 2 1 . . . 5 4 3 Traps | -11 -10 -10 -9 -9 -9 -8 -8 -8 -8 -8 -7 -7 -7 -7 -6 -6 -6 -6 -6 -6 -6 -5 -5 -5 -5 -5 -5 -4 -4 -4 -4 -4 -4 -3 -2 -1 ------- Run | Yrd Mat Min Mat Min Exi Min Mat Gar Mat Gar Fac Was Fac Gar Fac Was Fac Ext Cet Arc Hub Fac Was Fac Upp Upp Zhi Pro Fac Was Fac Arm Lab Res Res Acc Traps Triggered 41 | . 1 . . . . . . 4 . 7 3 . . 2 5 . 3 3 . . 1 3 . 1 1 . . . 4 . . . . . 2 1 Indirectly . | . . . . . . . . . . . . . . . . . . . . . . . . . . . . . . . . . . . . . Trap Hack Attempts . | . . . . . . . . . . . . . . . . . . . . . . . . . . . . . . . . . . . . . Triggered . | . . . . . . . . . . . . . . . . . . . . . . . . . . . . . . . . . . . . . Disarmed . | . . . . . . . . . . . . . . . . . . . . . . . . . . . . . . . . . . . . . Reprogrammed . | . . . . . . . . . . . . . . . . . . . . . . . . . . . . . . . . . . . . . Reused . | . . . . . . . . . . . . . . . . . . . . . . . . . . . . . . . . . . . . . Traps Extracted . | . . . . . . . . . . . . . . . . . . . . . . . . . . . . . . . . . . . . . Installed . | . . . . . . . . . . . . . . . . . . . . . . . . . . . . . . . . . . . . . Triggered 9 | . . . . . . . . . . . 3 . . . . . 4 . . . . . . . 2 . . . . . . . . . . . Objects Rigged 5 | . . . 1 . . . . . . . 4 . . . . . . . . . . . . . . . . . . . . . . . . . Exploded 2 | . . . 1 . . . . . . . 1 . . . . . . . . . . . . . . . . . . . . . . . . . Machines | -11 -10 -10 -9 -9 -9 -8 -8 -8 -8 -8 -7 -7 -7 -7 -6 -6 -6 -6 -6 -6 -6 -5 -5 -5 -5 -5 -5 -4 -4 -4 -4 -4 -4 -3 -2 -1 ---------- Run | Yrd Mat Min Mat Min Exi Min Mat Gar Mat Gar Fac Was Fac Gar Fac Was Fac Ext Cet Arc Hub Fac Was Fac Upp Upp Zhi Pro Fac Was Fac Arm Lab Res Res Acc Machines Disabled 127 | . 14 . 35 4 . 1 1 4 . 6 15 . 3 1 7 . 3 3 . 3 4 1 . . 1 . . . 14 . 1 2 . 1 . 3 Max in Single Turn 5 | . 3 . 1 1 . 1 1 1 . 1 5 . 2 1 1 . 1 1 . 1 1 1 . . 1 . . . 4 . . 1 . 1 . 1 Garrison Access 5 | . . . . . . . . . . . 1 . . . 1 . . . . . . . . . . . . . 1 . 1 . . . . 1 Garrison Relay 10 | . . . . . . . . 3 . 6 . . . 1 . . . . . . . . . . . . . . . . . . . . . . Network Hub 1 | . . . . . . . . . . . . . . . . . . . . . 1 . . . . . . . . . . . . . . . Energy Cycler 1 | . . . . . . . . . . . . . . . . . . . . . . . . . . . . . . . . 1 . . . . Machines Repaired . | . . . . . . . . . . . . . . . . . . . . . . . . . . . . . . . . . . . . . Machines Dismantled 27 | . . . 26 . . . . 1 . . . . . . . . . . . . . . . . . . . . . . . . . . . . Machines Sabotaged 1 | . . . . . . . . . . . . . . . . . . . . . 1 . . . . . . . . . . . . . . . Overloaded Fab Kills . | . . . . . . . . . . . . . . . . . . . . . . . . . . . . . . . . . . . . . Hacking | -11 -10 -10 -9 -9 -9 -8 -8 -8 -8 -8 -7 -7 -7 -7 -6 -6 -6 -6 -6 -6 -6 -5 -5 -5 -5 -5 -5 -4 -4 -4 -4 -4 -4 -3 -2 -1 --------- Run | Yrd Mat Min Mat Min Exi Min Mat Gar Mat Gar Fac Was Fac Gar Fac Was Fac Ext Cet Arc Hub Fac Was Fac Upp Upp Zhi Pro Fac Was Fac Arm Lab Res Res Acc Machines Accessed 269 | . 8 1 13 . 5 . 11 3 3 3 31 . 23 1 29 . 17 17 1 . 4 21 . 13 1 2 9 . 23 . 9 3 . 11 . 7 Terminals 143 | . 7 1 9 . . . 6 3 1 3 16 . 15 1 15 . 6 17 1 . 4 11 . 5 . . . . 12 . 3 2 . 2 . 3 Fabricators 39 | . . . . . . . . . . . 5 . 5 . 6 . 5 . . . . 2 . 3 . . . . 5 . 2 1 . 4 . 1 Repair Stations 20 | . . . 2 . . . 2 . . . 2 . . . 3 . 2 . . . . 1 . 2 . . . . 2 . 1 . . 2 . 1 Recycling Units 14 | . 1 . 2 . . . 1 . 1 . 2 . . . 2 . . . . . . 3 . 1 . . . . 1 . . . . . . . Scanalyzers 7 | . . . . . . . 1 . . . 2 . . . . . 1 . . . . 1 . 1 . . . . . . 1 . . . . . Garrison Access 29 | . . . . . . . 1 . 1 . 4 . 3 . 3 . 3 . . . . 3 . 1 . . . . 3 . 2 . . 3 . 2 Total Hacks 790 | . 19 2 38 . 50 . 32 5 6 6 72 . 60 3 70 . 47 34 4 . 8 63 . 45 1 8 48 . 83 . 35 11 . 26 . 14 Successful 484 | . 12 1 18 . 50 . 24 2 5 1 40 . 39 . 38 . 32 13 1 . 3 36 . 22 1 8 48 . 47 . 21 2 . 14 . 6 Failed 305 | . 7 1 20 . . . 8 3 1 5 32 . 21 3 31 . 15 21 3 . 5 27 . 23 . . . . 36 . 14 9 . 12 . 8 Catastrophic 63 | . . 1 2 . . . 1 . . 1 10 . 4 . 6 . 4 4 1 . 2 7 . 7 . . . . 6 . 2 2 . 2 . 1 Database Lockouts 1 | . . . . . . . . . . . . . . . 1 . . . . . . . . . . . . . . . . . . . . . Manual 327 | . 19 2 28 . 1 . 17 . 4 . 39 . 27 3 32 . 20 12 1 . 8 25 . 20 . . . . 34 . 18 8 . 7 . 2 Terminals 394 | . 18 2 30 . . . 22 5 2 6 39 . 32 3 39 . 15 34 4 . 8 32 . 18 . . . . 51 . 15 7 . 5 . 7 Fabricators 136 | . . . . . . . . . . . 13 . 18 . 16 . 15 . . . . 14 . 13 . . . . 20 . 9 4 . 12 . 2 Repair Stations 50 | . . . 5 . . . 4 . . . 3 . . . 7 . 6 . . . . 2 . 7 . . . . 6 . 5 . . 4 . 1 Recycling Units 22 | . 1 . 3 . . . 1 . 1 . 3 . . . 5 . . . . . . 5 . 2 . . . . 1 . . . . . . . Scanalyzers 20 | . . . . . . . 4 . . . 4 . . . . . 2 . . . . 4 . 4 . . . . . . 2 . . . . . Garrison Access 61 | . . . . . . . 1 . 3 . 10 . 10 . 3 . 9 . . . . 6 . 1 . . . . 5 . 4 . . 5 . 4 Terminal Hacks 205 | . 2 1 6 . 50 . 7 2 1 1 5 . 10 . 9 . 6 10 1 . . 10 . 4 1 8 48 . 15 . 4 1 . 1 . 2 Record 93 | . . . . . 49 . 1 . . . . . . . . . . . . . . . . . . 7 36 . . . . . . . . . Part Schematic 14 | . 1 . . . . . . . . . 3 . 1 . 2 . . . . . . 1 . 1 . . 4 . 1 . . . . . . . Robot Analysis 11 | . 1 . 3 . . . 1 . . . 1 . . . . . . . . . . 1 . . . . 4 . . . . . . . . . Prototype ID Bank 13 | . . . . . . . . . . . . . . . 1 . 1 . . . . 3 . . . . 4 . 4 . . . . . . . Open Door 12 | . . . . . . . . 1 . . . . . . . . . 8 1 . . . . . 1 1 . . . . . . . . . . Branch Access Points 2 | . . . . . . . . . . . . . . . . . . . . . . . . 1 . . . . . . . . . . . 1 Emergency Access Points 1 | . . . . . . . . . . 1 . . . . . . . . . . . . . . . . . . . . . . . . . . Machine Index 1 | . . . . . . . . . . . . . . . . . . . . . . . . . . . . . . . 1 . . . . . Terminal Index 6 | . . . . . . . 1 . . . 1 . 1 . 1 . 1 . . . . 1 . . . . . . . . . . . . . . Fabricator Index 2 | . . . . . . . . . . . . . . . . . 1 . . . . . . . . . . . 1 . . . . . . . Alert Level 1 | . . . . . . . 1 . . . . . . . . . . . . . . . . . . . . . . . . . . . . . Unreport Threat 15 | . . . . . . . 1 . 1 . . . 4 . 1 . . 2 . . . 1 . . . . . . 2 . 3 . . . . . Locate Traps 12 | . . . 3 . . . 1 . . . . . . . . . . . . . . 2 . 1 . . . . 4 . . 1 . . . . Maintenance Status 1 | . . . . . . . . . . . . . . . . . . . . . . . . . . . . . . . . . . . . 1 Recall Investigation 3 | . . . . . . . . . . . . . 1 . 2 . . . . . . . . . . . . . . . . . . . . . Recall Extermination 1 | . . . . . . . . . . . . . . . 1 . . . . . . . . . . . . . . . . . . . . . Hauler Manifests 8 | . . . . . . . 1 . . . . . 1 . 1 . 1 . . . . 1 . 1 . . . . 1 . . . . 1 . . Registered Components 3 | . . . . . . . . . . . . . 1 . . . 1 . . . . . . . . . . . 1 . . . . . . . Registered Prototypes 1 | . . . . . . . . . . . . . 1 . . . . . . . . . . . . . . . . . . . . . . . Zone Layout 3 | . . 1 . . . . . . . . . . . . . . 1 . . . . . . . . . . . 1 . . . . . . . Security Stations 1 | . . . . . . . . 1 . . . . . . . . . . . . . . . . . . . . . . . . . . . . Derelict Proto ID Bank 1 | . . . . . 1 . . . . . . . . . . . . . . . . . . . . . . . . . . . . . . . Fabricator Hacks 61 | . . . . . . . . . . . 7 . 8 . 8 . 7 . . . . 4 . 6 . . . . 9 . 4 1 . 7 . . Load Schematic 32 | . . . . . . . . . . . 3 . 4 . 4 . 4 . . . . 2 . 3 . . . . 5 . 2 1 . 4 . . Build 29 | . . . . . . . . . . . 4 . 4 . 4 . 3 . . . . 2 . 3 . . . . 4 . 2 . . 3 . . Repair Station Hacks 28 | . . . 1 . . . 4 . . . . . . . 5 . 5 . . . . 2 . 3 . . . . 4 . 4 . . . . . Scan Component 16 | . . . 1 . . . 2 . . . . . . . 3 . 3 . . . . 1 . 2 . . . . 2 . 2 . . . . . Repair 12 | . . . . . . . 2 . . . . . . . 2 . 2 . . . . 1 . 1 . . . . 2 . 2 . . . . . Recycling Unit Hacks 1 | . . . . . . . . . . . . . . . 1 . . . . . . . . . . . . . . . . . . . . . Retrieve Matter 1 | . . . . . . . . . . . . . . . 1 . . . . . . . . . . . . . . . . . . . . . Scanalyzer 16 | . . . . . . . 3 . . . 4 . . . . . 2 . . . . 3 . 2 . . . . . . 2 . . . . . Insert Component 8 | . . . . . . . 2 . . . 2 . . . . . 1 . . . . 1 . 1 . . . . . . 1 . . . . . Analyze 8 | . . . . . . . 1 . . . 2 . . . . . 1 . . . . 2 . 1 . . . . . . 1 . . . . . Garrison Access Hacks 42 | . . . . . . . 1 . 2 . 9 . 6 . 3 . 4 . . . . 4 . 1 . . . . 3 . 3 . . 3 . 3 Unlock Access 4 | . . . . . . . 1 . 1 . . . 2 . . . . . . . . . . . . . . . . . . . . . . . Seal Access 5 | . . . . . . . . . . . 1 . . . 1 . . . . . . . . . . . . . 1 . 1 . . . . 1 Coupler Status 33 | . . . . . . . . . 1 . 8 . 4 . 2 . 4 . . . . 4 . 1 . . . . 2 . 2 . . 3 . 2 Unauthorized Hacks 131 | . 10 . 11 . . . 9 . 2 . 15 . 15 . 12 . 8 3 . . 3 13 . 6 . . . . 16 . 4 . . 3 . 1 Terminals 81 | . 9 . 9 . . . 7 . . . 9 . 9 . 9 . 2 3 . . 3 8 . 2 . . . . 9 . 1 . . 1 . . Assimilate 8 | . . . . . . . . . . . 1 . 2 . 1 . . 1 . . . 1 . . . . . . 2 . . . . . . . Botnet 23 | . 2 . 1 . . . 2 . . . 2 . 2 . 2 . 2 2 . . . 2 . 2 . . . . 2 . 1 . . 1 . . Detonate 4 | . 1 . 2 . . . . . . . 1 . . . . . . . . . . . . . . . . . . . . . . . . . Operators 2 | . 1 . 1 . . . . . . . . . . . . . . . . . . . . . . . . . . . . . . . . . Skim 41 | . 5 . 5 . . . 5 . . . 5 . 5 . 6 . . . . . . 5 . . . . . . 5 . . . . . . . Sabotage 3 | . . . . . . . . . . . . . . . . . . . . . 3 . . . . . . . . . . . . . . . Fabricators 21 | . . . . . . . . . . . 3 . 2 . 2 . 3 . . . . 2 . 3 . . . . 4 . 2 . . . . . Prioritize 18 | . . . . . . . . . . . 3 . . . 2 . 2 . . . . 2 . 3 . . . . 4 . 2 . . . . . Liberate 2 | . . . . . . . . . . . . . 2 . . . . . . . . . . . . . . . . . . . . . . . Haulers 1 | . . . . . . . . . . . . . . . . . 1 . . . . . . . . . . . . . . . . . . . Repair Stations 1 | . . . . . . . . . . . 1 . . . . . . . . . . . . . . . . . . . . . . . . . Mechanics 1 | . . . . . . . . . . . 1 . . . . . . . . . . . . . . . . . . . . . . . . . Recycling Units 10 | . 1 . 2 . . . 1 . 1 . 1 . . . 1 . . . . . . 1 . 1 . . . . 1 . . . . . . . Recyclers 5 | . . . . . . . . . . . 1 . . . 1 . . . . . . 1 . 1 . . . . 1 . . . . . . . Tunnel 5 | . 1 . 2 . . . 1 . 1 . . . . . . . . . . . . . . . . . . . . . . . . . . . Scanalyzers 1 | . . . . . . . 1 . . . . . . . . . . . . . . . . . . . . . . . . . . . . . Extract 1 | . . . . . . . 1 . . . . . . . . . . . . . . . . . . . . . . . . . . . . . Garrison Access 17 | . . . . . . . . . 1 . 1 . 4 . . . 3 . . . . 2 . . . . . . 2 . 1 . . 2 . 1 Restock 3 | . . . . . . . . . . . . . 1 . . . 2 . . . . . . . . . . . . . . . . . . . Eject 14 | . . . . . . . . . 1 . 1 . 3 . . . 1 . . . . 2 . . . . . . 2 . 1 . . 2 . 1 Data Cores Recovered 3 | . . . . . . . . . . . . . 2 . . . . . . . . . . . . . . . . . . 1 . . . . Used . | . . . . . . . . . . . . . . . . . . . . . . . . . . . . . . . . . . . . . Hacking Detections 208 | . 7 1 11 . . . 8 3 1 3 26 . 21 1 25 . 14 14 1 . 1 17 . 10 . . . . 19 . 8 3 . 8 . 6 Full Trace Events 40 | . . . . . . . . . . 1 3 . 5 . 5 . 5 2 . . 1 2 . 3 . . . . 5 . 2 1 . 4 . 1 Feedback Events . | . . . . . . . . . . . . . . . . . . . . . . . . . . . . . . . . . . . . . Feedback Blocked . | . . . . . . . . . . . . . . . . . . . . . . . . . . . . . . . . . . . . . Robot Schematics Acquired . | . . . . . . . . . . . . . . . . . . . . . . . . . . . . . . . . . . . . . Robots Built 4 | . . . . . . . . . . . . . 4 . . . . . . . . . . . . . . . . . . . . . . . Authchips . | . . . . . . . . . . . . . . . . . . . . . . . . . . . . . . . . . . . . . Time 183 | . . . . . . . . . . . . . 183 . . . . . . . . . . . . . . . . . . . . . . . Total Robot Build Rating 14 | . . . . . . . . . . . . . 14 . . . . . . . . . . . . . . . . . . . . . . . Part Schematics Acquired 23 | . 1 . . . . . 3 . . . 5 . 1 . 2 . 1 . . . . 2 . 2 . . 4 . 1 . 1 . . . . . Parts Built 44 | . . . . . . . . . . . 8 . 2 . 8 . 6 . . . . 4 . 5 . . . . 5 . 2 . . 4 . . Authchips . | . . . . . . . . . . . . . . . . . . . . . . . . . . . . . . . . . . . . . Time 1416 | . . . . . . . . . . . 110 . 159 . 232 . 206 . . . . 52 . 138 . . . . 204 . 67 . . 248 . . Total Part Build Rating 258 | . . . . . . . . . . . 36 . 12 . 46 . 34 . . . . 24 . 27 . . . . 39 . 12 . . 28 . . Parts Repaired 12 | . . . . . . . 2 . . . . . . . 2 . 2 . . . . 1 . 1 . . . . 2 . 2 . . . . . Time 517 | . . . . . . . 115 . . . . . . . 84 . 136 . . . . 50 . 35 . . . . 44 . 53 . . . . . Parts Recycled . | . . . . . . . . . . . . . . . . . . . . . . . . . . . . . . . . . . . . . Recycled Matter . | . . . . . . . . . . . . . . . . . . . . . . . . . . . . . . . . . . . . . Retrieved Matter . | . . . . . . . . . . . . . . . . . . . . . . . . . . . . . . . . . . . . . Retrieved Components . | . . . . . . . . . . . . . . . . . . . . . . . . . . . . . . . . . . . . . Parts Scanalyzed 7 | . . . . . . . 1 . . . 2 . . . . . 1 . . . . 1 . 1 . . . . . . 1 . . . . . Part Schematics Acquired 7 | . . . . . . . 1 . . . 2 . . . . . 1 . . . . 1 . 1 . . . . . . 1 . . . . . Parts Damaged 2 | . . . . . . . 1 . . . . . . . . . . . . . . . . 1 . . . . . . . . . . . . Bothacking | -11 -10 -10 -9 -9 -9 -8 -8 -8 -8 -8 -7 -7 -7 -7 -6 -6 -6 -6 -6 -6 -6 -5 -5 -5 -5 -5 -5 -4 -4 -4 -4 -4 -4 -3 -2 -1 ------------ Run | Yrd Mat Min Mat Min Exi Min Mat Gar Mat Gar Fac Was Fac Gar Fac Was Fac Ext Cet Arc Hub Fac Was Fac Upp Upp Zhi Pro Fac Was Fac Arm Lab Res Res Acc Used RIF Installer 4 | . . . . . . . . 2 . 1 . . . 1 . . . . . . . . . . . . . . . . . . . . . . Threat Obfuscator 1 | . . . . . . . . . . 1 . . . . . . . . . . . . . . . . . . . . . . . . . . Zone Cloak 1 | . . . . . . . . 1 . . . . . . . . . . . . . . . . . . . . . . . . . . . . Watcher Feeds 1 | . . . . . . . . . . . . . . 1 . . . . . . . . . . . . . . . . . . . . . . Robots Hacked 96 | . . . . . . . . 2 2 5 15 6 5 3 8 . 10 2 . 1 . 9 . 3 . 1 3 . 1 6 . 1 . 1 7 5 Non-combat 15 | . . . . . . . . . . . 2 . . . 2 . 4 . . . . 4 . . . . . . 1 . . . . 1 1 . Combat 81 | . . . . . . . . 2 2 5 13 6 5 3 6 . 6 2 . 1 . 5 . 3 . 1 3 . . 6 . 1 . . 6 5 Robot Hacks Applied 111 | . . . . . . . . 2 2 5 20 7 5 4 11 . 12 2 . 1 . 12 . 3 . 1 3 . 1 6 . 1 . 1 7 5 parse_system 10 | . . . . . . . . . . . . 1 . . 1 . 2 . . 1 . . . . . . 3 . . . . 1 . 1 . . find_chute 7 | . . . . . . . . . . . 1 . . . 1 . . . . . . 4 . . . . . . 1 . . . . . . . find_recycling 2 | . . . . . . . . . . . 1 . . . . . . . . . . . . . . . . . . . . . . . 1 . purge_threat 1 | . . . . . . . . . . . . . . . . . 1 . . . . . . . . . . . . . . . . . . . recall_investigation 2 | . . . . . . . . . . . . . . . . . 2 . . . . . . . . . . . . . . . . . . . ignore_targets 12 | . . . . . . . . . . . . 6 . . . . . . . . . . . . . . . . . 6 . . . . . . scatter_targeting 2 | . . . . . . . . . . . 1 . . . 1 . . . . . . . . . . . . . . . . . . . . . overload_power 2 | . . . . . . . . . . . . . . . . . . 2 . . . . . . . . . . . . . . . . . . wipe_record 18 | . . . . . . . . . . . 3 . 2 . 2 . 2 . . . . 3 . . . . . . . . . . . . 2 4 disable_weapons 32 | . . . . . . . . . 1 1 7 . 3 4 5 . 3 . . . . 4 . 3 . 1 . . . . . . . . . . overwrite_iff 14 | . . . . . . . . . . 1 6 . . . . . 2 . . . . . . . . . . . . . . . . . 4 1 formatsys_high 8 | . . . . . . . . 2 1 3 . . . . 1 . . . . . . 1 . . . . . . . . . . . . . . formatsys_deep 1 | . . . . . . . . . . . 1 . . . . . . . . . . . . . . . . . . . . . . . . . Relay Couplers Released 105 | . . . . . . . . 17 3 24 4 . 10 5 . . 5 . . . . 11 . . . . . . 7 . 7 . . 8 . 4 Ejected 50 | . . . . . . . . . 3 . 4 . 10 . . . 4 . . . . 7 . . . . . . 7 . 3 . . 8 . 4 Machine Destruction 43 | . . . . . . . . 13 . 24 . . . 5 . . 1 . . . . . . . . . . . . . . . . . . . Programmers 12 | . . . . . . . . 4 . . . . . . . . . . . . . 4 . . . . . . . . 4 . . . . . Attached 40 | . . . . . . . . 3 1 2 6 1 2 1 5 . 3 1 . . . 4 . 2 . 1 . . . 1 . . . 1 4 2 Fabnet Peak Effective % . | . . . . . . . . . . . . . . . . . . . . . . . . . . . . . . . . . . . . . Robots Rewired 75 | . . . . . . . . 4 . . 5 2 1 1 5 . 4 9 . . . 3 . 1 1 2 . . 3 3 4 8 . 9 7 3 Allies Hacked 7 | . . . . . . . . . . . 2 . 2 . . . . . . . . 1 . . . . . . . . 1 . . . 1 . Hacks Repelled . | . . . . . . . . . . . . . . . . . . . . . . . . . . . . . . . . . . . . . Allies | -11 -10 -10 -9 -9 -9 -8 -8 -8 -8 -8 -7 -7 -7 -7 -6 -6 -6 -6 -6 -6 -6 -5 -5 -5 -5 -5 -5 -4 -4 -4 -4 -4 -4 -3 -2 -1 -------- Run | Yrd Mat Min Mat Min Exi Min Mat Gar Mat Gar Fac Was Fac Gar Fac Was Fac Ext Cet Arc Hub Fac Was Fac Upp Upp Zhi Pro Fac Was Fac Arm Lab Res Res Acc Total Allies 181 | . . 2 . . . . . 6 1 4 18 21 9 1 10 1 6 21 5 . . 5 1 4 1 2 . . 4 23 4 8 . 9 11 4 Largest Group 22 | . . 2 2 . . . . 4 2 3 4 21 21 1 5 1 2 15 16 15 6 2 2 3 1 3 2 2 2 22 22 4 . 5 3 2 Highest-Rated Group 1125 | . . 48 48 . . . . 121 41 53 119 747 746 32 157 31 58 551 924 885 443 98 60 93 59 164 123 123 49 1125 1125 188 . 181 178 97 Highest-Rated Ally 159 | . . 31 31 . . . . 39 21 29 34 141 141 32 81 31 29 159 159 151 96 49 31 49 59 64 64 64 49 141 141 49 . 116 148 69 Total Orders 14 | . . . . . . . . . 1 . . 2 . 1 . . 3 2 . . . . . . . . . . 2 . . . . 1 2 . STAY 4 | . . . . . . . . . 1 . . 1 . . . . . 2 . . . . . . . . . . . . . . . . . . ROAM 1 | . . . . . . . . . . . . . . 1 . . . . . . . . . . . . . . . . . . . . . . FOLLOW 2 | . . . . . . . . . . . . 1 . . . . 1 . . . . . . . . . . . . . . . . . . . AID 1 | . . . . . . . . . . . . . . . . . . . . . . . . . . . . . . . . . . 1 . . DROP 1 | . . . . . . . . . . . . . . . . . 1 . . . . . . . . . . . . . . . . . . . PICKUP 1 | . . . . . . . . . . . . . . . . . 1 . . . . . . . . . . . . . . . . . . . EXPLORE 2 | . . . . . . . . . . . . . . . . . . . . . . . . . . . . . 2 . . . . . . . RETURN 2 | . . . . . . . . . . . . . . . . . . . . . . . . . . . . . . . . . . . 2 . Ally Attacks 1282 | . . . 18 . . . . 61 1 24 103 30 325 4 71 2 8 168 44 41 63 19 6 19 . 1 . 2 1 22 178 12 . 12 33 14 Total Damage 33108 | . . . 188 . . . . 860 20 282 1910 2722 6553 129 1897 42 128 3889 1166 1119 1743 595 102 345 . 53 . 32 326 1696 5442 376 . 398 678 417 Kills 230 | . . . 5 . . . . 9 . 4 20 4 60 2 18 . 1 24 6 4 9 5 . 1 . . . . 2 3 46 1 . 3 2 1 Allies Corrupted 8 | . . . . . . . . . . . 1 . 2 . . . . . . . . . . . . . . . . . 1 2 . . 2 . Allies Melted 1 | . . . . . . . . . . . . . . . . . . . . . 1 . . . . . . . . . . . . . . . Intel | -11 -10 -10 -9 -9 -9 -8 -8 -8 -8 -8 -7 -7 -7 -7 -6 -6 -6 -6 -6 -6 -6 -5 -5 -5 -5 -5 -5 -4 -4 -4 -4 -4 -4 -3 -2 -1 ------- Run | Yrd Mat Min Mat Min Exi Min Mat Gar Mat Gar Fac Was Fac Gar Fac Was Fac Ext Cet Arc Hub Fac Was Fac Upp Upp Zhi Pro Fac Was Fac Arm Lab Res Res Acc Robot Analysis Total 11 | . 1 . 3 . . . 1 . . . 1 . . . . . . . . . . 1 . . . . 4 . . . . . . . . . Derelict Logs Recovered 7 | . . 1 . 2 . . . . . . . . . . . . . . . . . . . . 1 1 . 2 . . . . . . . . Drone Launches 4 | . . . . . . . . . . . . . . . . . . . . . . . . . . . . . 2 . . . . . 2 . Drone Recoveries 3 | . . . . . . . . . . . . . . . . . . . . . . . . . . . . . 1 . . . . . 2 . Exploration | -11 -10 -10 -9 -9 -9 -8 -8 -8 -8 -8 -7 -7 -7 -7 -6 -6 -6 -6 -6 -6 -6 -5 -5 -5 -5 -5 -5 -4 -4 -4 -4 -4 -4 -3 -2 -1 ------------- Run | Yrd Mat Min Mat Min Exi Min Mat Gar Mat Gar Fac Was Fac Gar Fac Was Fac Ext Cet Arc Hub Fac Was Fac Upp Upp Zhi Pro Fac Was Fac Arm Lab Res Res Acc Turns Passed 41286 | 213 1236 112 2657 699 349 212 1171 1350 353 1355 3389 1039 1744 762 4778 144 3686 1408 296 903 222 1892 47 772 590 529 177 516 2650 748 829 496 5 2444 724 789 Spaces Moved 43955 | 69 518 66 1046 301 257 101 579 706 188 315 5630 883 4059 593 5208 186 4331 1463 146 354 219 2369 93 1038 606 795 172 369 3038 682 1191 534 11 3621 1038 1180 Core 2 | 2 . . . . . . . . . . . . . . . . . . . . . . . . . . . . . . . . . . . . Treads 61 | . 10 . . 2 . . . . . 49 . . . . . . . . . . . . . . . . . . . . . . . . . . Legs 1662 | . . . . . . . . . . 202 . . . . 430 . . . . . . . . . . . 75 369 586 . . . . . . . Wheels 3852 | 67 508 66 1046 299 257 101 579 706 188 35 . . . . . . . . . . . . . . . . . . . . . . . . . . Hover 34695 | . . . . . . . . . . 29 4929 . 1960 593 4778 186 4331 1463 146 354 219 2369 93 1038 606 795 97 . 2452 682 1191 534 11 3621 1038 1180 Flight 3683 | . . . . . . . . . . . 701 883 2099 . . . . . . . . . . . . . . . . . . . . . . . Fastest Speed 27 | 50 85 135 135 135 135 180 150 150 150 176 29 29 27 33 32 59 59 65 65 58 58 46 51 51 51 51 51 120 45 48 48 48 48 45 47 46 Average Speed 63 | 88 123 135 148 150 135 180 179 160 159 373 39 52 32 36 62 59 62 65 65 61 65 52 51 51 51 51 81 120 62 48 48 48 48 50 47 47 Slowest Speed 570 | 100 160 135 150 320 150 180 180 180 210 570 112 102 120 103 166 59 129 65 65 144 124 111 51 51 51 51 120 120 120 48 48 48 48 51 137 131 Overloaded Moves 107 | . . . . . . . . . . . 107 . . . . . . . . . . . . . . . . . . . . . . . . . Propulsion Burnouts 1 | . . . . . . . . . . . 1 . . . . . . . . . . . . . . . . . . . . . . . . . Robots Hopped 50 | . . . . . . . . . . . 8 5 37 . . . . . . . . . . . . . . . . . . . . . . . Cave-ins Triggered . | . . . . . . . . . . . . . . . . . . . . . . . . . . . . . . . . . . . . . Teleports 1 | . . . . . . . . . . . . . . . . . . . . . . . . . . . . . . . . 1 . . . . Exploration Rate (%) 57 | 4 67 21 87 74 60 36 52 62 20 54 87 96 74 42 83 90 72 86 66 97 39 55 74 26 58 93 62 55 67 95 27 32 5 72 21 29 Regions Visited 36 Branch Regions 14 Pre-discovered Areas 18 | . 3 . 5 . 1 . 2 . 1 . 1 . 1 . . . . . . . . 1 . . . . 3 . . . . . . . . . Known Exits Taken 14 | . 1 1 . . . 1 1 . 1 . . . 1 . . . 1 1 . . . . . 1 1 . . 1 . . . 1 1 1 . . Unknown Exits Taken 11 | 1 . . 1 1 1 . . . . . . . . . . . . . 1 1 1 . . . . 1 1 . . . 1 . . . 1 . Scrap Searched 9 | . . 1 . 1 . 1 . . . . . . . . . . . . . . . . . . 3 3 . . . . . . . . . . Spaces Dug 392 | . . . 2 5 . . . 16 2 3 35 . 20 . 71 . 72 1 . . 10 34 . 9 . . . 2 57 4 10 8 . 13 9 9 Terrain Destroyed 1089 | . 104 . 122 14 . 22 13 22 2 3 136 . 42 6 88 . 98 30 3 19 36 63 . 14 . . . 30 122 4 11 8 . 18 10 49 Melee 38 | . . . 2 5 . . . 16 2 3 10 . . . . . . . . . . . . . . . . . . . . . . . . . Projectile 438 | . . . . . . . 13 6 . . 25 . 21 . 73 . 80 10 3 19 10 41 . 9 . . . 2 68 4 11 8 . 15 10 10 AOE 613 | . 104 . 120 9 . 22 . . . . 101 . 21 6 15 . 18 20 . . 26 22 . 5 . . . 28 54 . . . . 3 . 39 Terrain Rammed . | . . . . . . . . . . . . . . . . . . . . . . . . . . . . . . . . . . . . . Walls Destroyed . | . . . . . . . . . . . . . . . . . . . . . . . . . . . . . . . . . . . . . Machines Disabled . | . . . . . . . . . . . . . . . . . . . . . . . . . . . . . . . . . . . . . Actions | -11 -10 -10 -9 -9 -9 -8 -8 -8 -8 -8 -7 -7 -7 -7 -6 -6 -6 -6 -6 -6 -6 -5 -5 -5 -5 -5 -5 -4 -4 -4 -4 -4 -4 -3 -2 -1 --------- Run | Yrd Mat Min Mat Min Exi Min Mat Gar Mat Gar Fac Was Fac Gar Fac Was Fac Ext Cet Arc Hub Fac Was Fac Upp Upp Zhi Pro Fac Was Fac Arm Lab Res Res Acc Total 53892 | 181 961 77 1547 469 259 127 716 863 231 443 6389 1363 4350 1019 6364 204 5026 1774 327 951 269 2867 92 1202 852 901 206 414 3622 993 1398 734 10 4131 1193 1367 Wait 5522 | 80 296 6 73 115 . 11 92 21 17 19 257 365 144 293 577 3 331 170 158 535 20 255 . 77 191 88 14 15 306 221 136 151 . 326 49 110 Move 43831 | 68 517 65 1045 300 256 100 579 705 187 314 5616 874 3989 592 5208 185 4330 1462 145 353 218 2369 92 1037 605 794 171 368 3038 681 1190 533 10 3620 1037 1178 Hop 41 | . . . . . . . . . . . 6 3 32 . . . . . . . . . . . . . . . . . . . . . . . Pick Up 309 | 8 11 . 34 2 1 1 14 19 3 5 18 3 12 8 31 3 21 2 4 4 . 24 . 5 7 2 1 . 29 1 8 . . 17 4 7 Fast Attach 144 | 7 2 . 1 2 . 2 4 2 1 1 18 . 5 1 20 . 15 5 2 4 1 5 . 1 5 1 7 . 17 1 1 2 . 7 2 2 Attach 181 | . 2 . 10 3 . 4 5 6 1 9 12 4 12 1 41 . 12 7 . 1 . 7 . . 3 . . 5 11 1 4 . . 5 7 8 Detach 118 | . 1 . . . 2 4 5 2 1 4 9 4 11 1 36 . 6 2 2 1 . 2 . . 1 . . 1 9 . 4 2 . 3 4 1 Swap 608 | . 31 . 89 8 . 1 4 10 9 21 97 5 34 23 30 1 26 9 3 3 13 41 . 26 6 3 4 2 14 5 4 11 . 50 15 10 Drop 296 | . 8 . 22 . . 1 12 19 2 7 37 5 21 8 28 3 18 1 3 4 . 26 . 7 6 2 6 . 20 . 3 . . 25 2 . Fire 2351 | 18 93 6 140 17 . 1 1 8 5 22 269 100 84 63 332 9 253 94 10 46 16 118 . 49 17 11 3 23 178 83 48 35 . 76 73 50 Melee 164 | . . . 4 22 . 2 . 31 5 14 50 . 6 7 14 . . . . . . 7 . . . . . . . . . . . 2 . . Ram 2 | . . . . . . . . . . . . . . . . . 1 . . . 1 . . . . . . . . . . . . . . . Kick 35 | . . . . . . . . . . . . . . . 35 . . . . . . . . . . . . . . . . . . . . . Crush . | . . . . . . . . . . . . . . . . . . . . . . . . . . . . . . . . . . . . . Escape Stasis 113 | . . . . . . . . 8 . 27 . . . 21 8 . 13 22 . . . 13 . . . . . . . . . . . . . 1 Rewire 45 | . . . . . . . . 29 . . . . . 1 4 . . . . . . . . . 11 . . . . . . . . . . . Trap . | . . . . . . . . . . . . . . . . . . . . . . . . . . . . . . . . . . . . . Miscellaneous 132 | . . . 129 . . . . 3 . . . . . . . . . . . . . . . . . . . . . . . . . . . . Route ------- -11/Scrapyard -10/Materials (discovered 5 exits: *Mat x3 / *Min / Sub) -10/Mines -9/Materials (discovered 5 exits: *Mat x3 / [*Min] / [*Sto]) -9/Mines (discovered 3 exits: *Mat x2 / *Exi) -9/Exiles (discovered 2 exits: [*Min x2]) -8/Mines -8/Materials (discovered 4 exits: *Fac x3 / Gar) -8/Garrison -8/Materials (discovered 2 exits: Fac / Gar) -8/Garrison (discovered 2 exits: *Fac x2) -7/Factory (discovered 6 exits: *Fac x4 / *Low x2) -7/Waste -7/Factory (discovered 7 exits: *Fac x3 / *Low x2 / Gar / Gar) -7/Garrison -6/Factory (discovered 5 exits: *Fac x2 / [*Low x2] / Ext) -6/Waste -6/Factory (discovered 3 exits: *Fac / [*Low] / *Ext) -6/Extension (discovered 2 exits: *Fac / *Cet) -6/Cetus (discovered 2 exits: *Fac / [*Arc]) -6/Archives (discovered 3 exits: *Fac / *Hub x2) -6/Hub_04(d) -5/Factory (discovered 3 exits: *Fac / *Upp x2) -5/Waste -5/Factory (discovered 4 exits: *Fac x2 / *Upp x2) -5/Upper Caves -5/Upper Caves (discovered 2 exits: *Fac / *Zhi) -5/Zhirov -4/Proximity Caves -4/Factory (discovered 6 exits: *Res x4 / Upp x2) -4/Waste -4/Factory (discovered 6 exits: *Res x3 / *Upp x2 / *Arm) -4/Armory (discovered 2 exits: Res / *Lab) -4/Lab -3/Research (discovered 4 exits: *Res x3 / *Tes) -2/Research (discovered 2 exits: *Acc / Qua) -1/Access (discovered 2 exits: [*Sur] / Com) To Epsilon Eridani History --------- Turn | Location | Event 14 | -11/Scrapyard | Discovered new exit (range 16) 214 | -11/Scrapyard | Entered Materials 356 | -10/Materials | Build established: Mutant 622 | -10/Materials | Discovered new exit (range 8) 850 | -10/Materials | Discovered new exit (range 14) 896 | -10/Materials | Discovered new exit (range 3) 1054 | -10/Materials | Identified exit to Materials 1126 | -10/Materials | Learned location of 1 exit from Storage 1186 | -10/Materials | Learned Storage trap positions 1274 | -10/Materials | Learned 4 Recycling zone layouts 1303 | -10/Materials | Identified exit to Subcaves 1320 | -10/Materials | Loaded intel: 2 recycling unit locations 1349 | -10/Materials | Loaded intel: 11 interactive machine locations 1388 | -10/Materials | Identified exit to Mines 1450 | -10/Materials | Entered Mines 1562 | -10/Mines | Entered Materials 1562 | -9/Materials | Accompanied by 2 allies 1562 | -9/Materials | Evolved 2 slots: Utility x1, Weapon x1 1567 | -9/Materials | Led the pair of lost Derelicts to an unsafe place 1858 | -9/Materials | Build established: Tank 1931 | -9/Materials | Discovered new exit (range 10) 2237 | -9/Materials | Discovered new exit (range 16) 2640 | -9/Materials | Discovered new exit (range 8) 2784 | -9/Materials | Learned Storage trap positions 2873 | -9/Materials | Learned Materials stockpile data 2921 | -9/Materials | Learned location of Recycling (-9) 2950 | -9/Materials | Identified exit to Materials 3562 | -9/Materials | First assault squad dispatched 3647 | -9/Materials | Destroyed 7 combat bots 4027 | -9/Materials | Discovered exit to Materials (range 12) 4069 | -9/Materials | Core integrity fell below 50% 4069 | -9/Materials | High security lockdown imminent 4124 | -9/Materials | Destroyed 8 combat bots 4128 | -9/Materials | Sterilization system engaged 4128 | -9/Materials | Non-combat units ordered to evacuate 4146 | -9/Materials | Lost 5 parts (1p2u2w) 4219 | -9/Materials | Entered Mines 4233 | -9/Mines | Met a Derelict bent on vengeance 4334 | -9/Mines | Build established: Mutant 4384 | -9/Mines | Learned 2 Materials zone layouts 4403 | -9/Mines | Discovered exit to Materials (range 15) 4413 | -9/Mines | Assembled infested the area 4756 | -9/Mines | Learned 4 Materials zone layouts 4767 | -9/Mines | Discovered exit to Materials (range 7) 4912 | -9/Mines | Deemed a non-threat by the Exiles lab entrance 4912 | -9/Mines | Discovered new exit (range 5) 4918 | -9/Mines | Entered Exiles 4937 | -9/Exiles | Discovered new exit (range 15) 4956 | -9/Exiles | Met 8R-AWN 4977 | -9/Exiles | Met EX-HEX 5035 | -9/Exiles | Learned location of Zion (-7) 5036 | -9/Exiles | Met EX-DEC 5059 | -9/Exiles | Met EX-BIN 5078 | -9/Exiles | Aligned with FarCom system 5079 | -9/Exiles | Given EX-Vault access code 5132 | -9/Exiles | Opened EX-Vault 5139 | -9/Exiles | Found AWS/Autocannon 5164 | -9/Exiles | Warned to stay clear of 0b10 Research branches 5256 | -9/Exiles | Discovered new exit (range 10) 5267 | -9/Exiles | Left Exiles lab with AWS/Autocannon 5267 | -9/Exiles | Entered Mines 5270 | -8/Mines | Core integrity fell below 20% 5457 | -8/Mines | Discovered exit to Materials (range 9) 5479 | -8/Mines | Entered Materials 5479 | -8/Materials | Evolved 2 slots: Utility x2 5480 | -8/Materials | Identified exit to Factory 5684 | -8/Materials | Build established: Tank 6026 | -8/Materials | Repaired Broken Imp. EM Shotgun 6228 | -8/Materials | Learned Storage emergency access door positions 6301 | -8/Materials | Learned location of 1 exit from Extension 6348 | -8/Materials | Repaired Imp. EM Shotgun 6538 | -8/Materials | Learned Factory security intel 6590 | -8/Materials | Learned Storage emergency access door positions 6650 | -8/Materials | Identified exit to Garrison 6650 | -8/Materials | Entered Garrison 6702 | -8/Garrison | Triggered checkpoint 6819 | -8/Garrison | Garrison Relay disabled 6903 | -8/Garrison | Installed Relay Interface Framework 7008 | -8/Garrison | Triggered checkpoint 7083 | -8/Garrison | Triggered checkpoint 7110 | -8/Garrison | Triggered checkpoint 7199 | -8/Garrison | AWS/Autocannon suddenly broke down 7218 | -8/Garrison | Garrison Relay disabled 7372 | -8/Garrison | Discovered new exit (range 8) 7463 | -8/Garrison | Build established: Bothacker-Skirmisher 7705 | -8/Garrison | Learned Materials security intel 7767 | -8/Garrison | Expanded RIF knowledge: Zone Cloak 7841 | -8/Garrison | Triggered checkpoint 7888 | -8/Garrison | Lost 3 allies 8000 | -8/Garrison | Entered Materials 8000 | -8/Materials | Accompanied by 1 ally 8337 | -8/Materials | Identified exit to Garrison 8353 | -8/Materials | Entered Garrison 8353 | -8/Garrison | Accompanied by 1 ally 8419 | -8/Garrison | Triggered checkpoint 8495 | -8/Garrison | Garrison Relay disabled 8497 | -8/Garrison | Lost 3 allies 8803 | -8/Garrison | Triggered checkpoint 8943 | -8/Garrison | Discovered exit to Factory (range 12) 9112 | -8/Garrison | Garrison Relay disabled 9413 | -8/Garrison | Expanded RIF knowledge: Threat Obfuscation 9531 | -8/Garrison | Discovered exit to Factory (range 8) 9610 | -8/Garrison | Garrison Relay disabled 9616 | -8/Garrison | Garrison Relay disabled 9636 | -8/Garrison | Garrison Relay disabled 9638 | -8/Garrison | Garrison Relay disabled 9656 | -8/Garrison | Lost 3 parts (1n1u1w) 9708 | -8/Garrison | Entered Factory 9708 | -7/Factory | Evolved 2 slots: Propulsion x2 9709 | -7/Factory | Identified exit to Lower Caves 10016 | -7/Factory | Build established: Bothacker-Mutant 10637 | -7/Factory | Loaded intel: 131 trap records 10653 | -7/Factory | Discovered new exit (range 9) 10707 | -7/Factory | Identified exit to Factory 10850 | -7/Factory | Learned location of 1 exit from Upper Caves 10876 | -7/Factory | Learned location of Proximity Caves (-3) 10912 | -7/Factory | Learned location of 2 exits from Proximity Caves 10956 | -7/Factory | Learned Factory trap positions 11230 | -7/Factory | Build established: Bothacker-Skirmisher 11352 | -7/Factory | Fabricated Linear Gravjet (x2) 11378 | -7/Factory | Fabricated Core Analyzer (x2) 11498 | -7/Factory | Fabricated Armor Integrity Analyzer (x2) 11708 | -7/Factory | First assault squad dispatched 11816 | -7/Factory | Build established: Bothacker-Gunner 12024 | -7/Factory | Lost 3 allies 12312 | -7/Factory | Assimilated ARC 4a with formatsys_deep 12332 | -7/Factory | Garrison activated, responded to threat 12521 | -7/Factory | Build established: Bothacker-Sprinter 12728 | -7/Factory | Garrison activated, responded to threat 12844 | -7/Factory | Lost 4 parts (3n1u) 13034 | -7/Factory | Fabricated Arc Projector? 13097 | -7/Factory | Sucked down chute 13097 | -7/Factory | Entered Waste 13100 | -7/Waste | Spotted C-40 Crusher 13359 | -7/Waste | Spotted C-40 Crusher 13445 | -7/Waste | Rewired C-40 Crusher 13554 | -7/Waste | Spotted C-40 Crusher 13554 | -7/Waste | Spotted C-40 Crusher 13563 | -7/Waste | Spotted C-40 Crusher 13567 | -7/Waste | Spotted C-40 Crusher 13646 | -7/Waste | Build established: Bothacker-Mutant 13763 | -7/Waste | Allies destroyed C-40 Crusher 13847 | -7/Waste | Allies destroyed C-40 Crusher 13930 | -7/Waste | Allies destroyed C-40 Crusher 13952 | -7/Waste | Allies destroyed C-40 Crusher 14008 | -7/Waste | Rewired C-40 Crusher 14023 | -7/Waste | Warlord forces began an assault 14028 | -7/Waste | Discovered new exit (range 11) 14136 | -7/Waste | Entered Factory 14136 | -7/Factory | Accompanied by 21 allies 14137 | -7/Factory | Loaded intel: 73 trap records 14439 | -7/Factory | Lost 4 allies 14584 | -7/Factory | Discovered exit to Factory (range 8) 14695 | -7/Factory | Garrison activated, responded to threat 14791 | -7/Factory | Learned Hub_04(d) terminal intel 14859 | -7/Factory | Learned location of 1 exit from Lower Caves 14967 | -7/Factory | Learned 2 Lower Caves zone layouts 15009 | -7/Factory | Garrison activated, responded to threat 15019 | -7/Factory | Fabricated Y-54 Guardian? 15029 | -7/Factory | Learned Extension emergency access door positions 15047 | -7/Factory | Fabricated Linear Gravjet? 15065 | -7/Factory | Learned 2 Proximity Caves zone layouts 15099 | -7/Factory | Cargo convoy interrupted 15110 | -7/Factory | Learned location of Lower Caves (-6) 15144 | -7/Factory | Identified exit to Garrison 15205 | -7/Factory | Fabricated H-55 Commando? 15232 | -7/Factory | Learned location of 1 exit from Proximity Caves 15736 | -7/Factory | Search patrols dispatched 15862 | -7/Factory | Identified exit to Garrison 15880 | -7/Factory | Entered Garrison 15897 | -7/Garrison | Build established: Bothacker-Sprinter 16080 | -7/Garrison | Expanded RIF knowledge: Watcher Feeds 16198 | -7/Garrison | Triggered checkpoint 16254 | -7/Garrison | Discovered exit to Factory (range 12) 16336 | -7/Garrison | Garrison Relay disabled 16342 | -7/Garrison | Triggered checkpoint 16399 | -7/Garrison | Core integrity fell below 50% 16642 | -7/Garrison | Entered Factory 16642 | -6/Factory | Evolved 2 slots: Propulsion x1, Weapon x1 16643 | -6/Factory | Identified exit to Extension 16840 | -6/Factory | Lost 3 parts (3w) 17213 | -6/Factory | Fabricated Imp. Arc Projector (x2) 17355 | -6/Factory | Lost 5 parts (2n1u2w) 17605 | -6/Factory | Build established: Hacker-Mutant 17806 | -6/Factory | Fabricated Imp. Arc Projector? 17907 | -6/Factory | Central database locked down 17944 | -6/Factory | Repaired Imp. Arc Projector? 18378 | -6/Factory | Build established: Bothacker-Mutant 18706 | -6/Factory | Discovered new exit (range 3) 19399 | -6/Factory | Discovered new exit (range 4) 19459 | -6/Factory | Discovered new exit (range 4) 19551 | -6/Factory | Spotted B-75 Beast 19578 | -6/Factory | Rewired B-75 Beast 20029 | -6/Factory | Repaired Imp. Arc Projector? 20447 | -6/Factory | Build established: Bothacker-Gunner 20765 | -6/Factory | Discovered new exit (range 12) 20900 | -6/Factory | Fabricated Cmb. Airjet? 20943 | -6/Factory | Fabricated Imp. Arc Projector? 21119 | -6/Factory | Build established: Gunner 21420 | -6/Factory | Sucked down chute 21420 | -6/Factory | Entered Waste 21421 | -6/Waste | Met a frightened Derelict 21435 | -6/Waste | EMP discharged 21435 | -6/Waste | System corruption reached 10% 21452 | -6/Waste | Spotted C-40 Crusher 21453 | -6/Waste | Spotted C-40 Crusher 21465 | -6/Waste | Spotted C-40 Crusher 21466 | -6/Waste | Spotted C-40 Crusher 21494 | -6/Waste | Spotted C-40 Crusher 21535 | -6/Waste | EMP discharged 21535 | -6/Waste | Spotted C-40 Crusher 21558 | -6/Waste | Discovered new exit (range 10) 21564 | -6/Waste | Entered Factory 21644 | -6/Factory | Build established: Machinist-Gunner 21730 | -6/Factory | Discovered exit to Extension (range 14) 21752 | -6/Factory | Fabricated Cmb. Airjet? 22025 | -6/Factory | Discovered new exit (range 14) 22351 | -6/Factory | Build established: Bothacker-Gunner 22833 | -6/Factory | Fabricated Imp. Arc Projector? 23004 | -6/Factory | Cargo convoy interrupted 23113 | -6/Factory | Core integrity fell below 50% 23143 | -6/Factory | Found Prototype Launcher 23143 | -6/Factory | Identified Mni. Smartbomb Launcher 23144 | -6/Factory | Garrison activated, responded to threat 23152 | -6/Factory | Found Prototype Hackware 23152 | -6/Factory | Identified Exp. System Shield 23170 | -6/Factory | Destroyed 7 combat bots 23197 | -6/Factory | Lost 4 parts (1p1n1u1w) 23705 | -6/Factory | Fabricated Imp. Arc Projector (x2) 23811 | -6/Factory | Build established: Bothacker-Skirmisher 23998 | -6/Factory | Repaired Broken Imp. Phase Shifter? 24117 | -6/Factory | Repaired Cmb. Airjet? 24156 | -6/Factory | Discovered new exit (range 24) 25250 | -6/Factory | Entered Extension 25251 | -6/Extension | Identified exit to Cetus 25580 | -6/Extension | Lost 3 parts (3w) 25762 | -6/Extension | Rescued a captive Derelict 25771 | -6/Extension | Rescued a captive Derelict 25777 | -6/Extension | Rescued a captive Derelict 25778 | -6/Extension | Rescued a captive Derelict 25789 | -6/Extension | Rescued a captive Derelict 25790 | -6/Extension | Rescued a captive Derelict 25793 | -6/Extension | Rescued a captive Derelict 25794 | -6/Extension | Rescued a captive Derelict 25807 | -6/Extension | Rescued a captive Derelict 25808 | -6/Extension | Rescued a captive Derelict 25820 | -6/Extension | Rescued a captive Derelict 25902 | -6/Extension | Build established: Mutant 25946 | -6/Extension | Spotted B-75 Beast 25947 | -6/Extension | Spotted B-75 Beast 25955 | -6/Extension | Lost 3 allies 25975 | -6/Extension | Allies destroyed B-75 Beast 25977 | -6/Extension | Allies destroyed B-75 Beast 26072 | -6/Extension | Rescued A7 26150 | -6/Extension | Disrupted transfer network 26613 | -6/Extension | Discovered new exit (range 10) 26658 | -6/Extension | Entered Cetus 26658 | -6/Cetus | Accompanied by 13 allies (A7) 26663 | -6/Cetus | Acquired a Cetus Manufacturing Module code from A7 26689 | -6/Cetus | Spotted Cetus Guard 26689 | -6/Cetus | Spotted Cetus Guard 26689 | -6/Cetus | Spotted Cetus Guard 26689 | -6/Cetus | Destroyed Cetus Guard 26690 | -6/Cetus | Spotted Cetus Guard 26695 | -6/Cetus | Allies destroyed Cetus Guard 26704 | -6/Cetus | Allies destroyed Cetus Guard 26712 | -6/Cetus | Allies destroyed Cetus Guard 26744 | -6/Cetus | Started Cetus Manufacturing Module 26749 | -6/Cetus | Escorted A7 to Cetus Mainframe 26769 | -6/Cetus | Manufactured an Enhanced Grunt 26794 | -6/Cetus | Manufactured an Enhanced Grunt 26819 | -6/Cetus | Manufactured an Enhanced Grunt 26844 | -6/Cetus | Manufactured an Enhanced Grunt 26850 | -6/Cetus | Discovered new exit (range 16) 26869 | -6/Cetus | Manufactured an Enhanced Grunt 26874 | -6/Cetus | Spotted Cetus Guard 26875 | -6/Cetus | Spotted Cetus Guard 26876 | -6/Cetus | Spotted Cetus Guard 26878 | -6/Cetus | Spotted Cetus Guard 26879 | -6/Cetus | Allies destroyed Cetus Guard 26883 | -6/Cetus | Allies destroyed Cetus Guard 26884 | -6/Cetus | Destroyed Cetus Guard 26892 | -6/Cetus | Allies destroyed Cetus Guard 26896 | -6/Cetus | Discovered new exit (range 16) 26902 | -6/Cetus | Met Revision 17 26954 | -6/Cetus | Entered Archives 26954 | -6/Archives | Accompanied by 15 allies (A7) 26959 | -6/Archives | Received a hacking code to weaken MAIN.C 27016 | -6/Archives | Lost 7 allies 27107 | -6/Archives | Discovered new exit (range 13) 27208 | -6/Archives | Discovered new exit (range 13) 27232 | -6/Archives | Discovered new exit (range 15) 27339 | -6/Archives | Build established: Scavenger-Gunner 27857 | -6/Archives | Entered Hub_04(d) 27857 | -6/Hub_04(d) | Accompanied by 6 allies 27858 | -6/Hub_04(d) | Loaded intel: 15 terminal locations 28040 | -6/Hub_04(d) | Network Hub disabled 28046 | -6/Hub_04(d) | Spotted Lightning 28074 | -6/Hub_04(d) | Discovered new exit (range 4) 28079 | -6/Hub_04(d) | Entered Factory 28079 | -5/Factory | Evolved 2 slots: Propulsion x1, Utility x1 28080 | -5/Factory | Identified exit to Upper Caves 28090 | -5/Factory | Lost 4 allies 28188 | -5/Factory | Repaired Cmb. Airjet 28411 | -5/Factory | Fabricated Imp. Arc Projector (x2) 28622 | -5/Factory | Discovered exit to Upper Caves (range 15) 28686 | -5/Factory | Fabricated Imp. Arc Projector (x2) 28825 | -5/Factory | Loaded intel: 4 scanalyzer locations 28854 | -5/Factory | Discovered new exit (range 14) 28877 | -5/Factory | Learned location of 1 exit from Armory 28890 | -5/Factory | Learned Testing trap positions 28891 | -5/Factory | Learned 4 Extension zone layouts 29771 | -5/Factory | Garrison activated, responded to threat 29971 | -5/Factory | Manually triggered Chute Trap 29971 | -5/Factory | Sucked down chute 29971 | -5/Factory | Entered Waste 29972 | -5/Waste | Met a frightened Derelict 29972 | -5/Waste | Identified exit to Factory 29976 | -5/Waste | Spotted C-40 Crusher 29981 | -5/Waste | 1 allies followed down the chute 29984 | -5/Waste | Spotted C-40 Crusher 29985 | -5/Waste | Spotted C-40 Crusher 29986 | -5/Waste | EMP discharged 29986 | -5/Waste | System corruption reached 10% 29999 | -5/Waste | Spotted C-40 Crusher 30001 | -5/Waste | Spotted C-40 Crusher 30002 | -5/Waste | Spotted C-40 Crusher 30018 | -5/Waste | Entered Factory 30019 | -5/Factory | Identified exit to Factory 30115 | -5/Factory | Build established: Bothacker-Gunner 30261 | -5/Factory | Allied Derelicts emerged from ambush trap array 30270 | -5/Factory | Fabricated Imp. Arc Projector? 30379 | -5/Factory | Fabricated Cmb. Airjet? 30615 | -5/Factory | Garrison activated, responded to threat 30713 | -5/Factory | Found Mni. Smartbomb Launcher 30745 | -5/Factory | Fabricated F-cell Engine? 30751 | -5/Factory | Repaired Broken Cmb. Airjet 30790 | -5/Factory | Entered Upper Caves 30791 | -5/Upper Caves | Identified exit to Upper Caves 30834 | -5/Upper Caves | Spotted B-75 Beast 31046 | -5/Upper Caves | Build established: Machinist-Gunner 31110 | -5/Upper Caves | Attacked by a delusional Derelict stockpiling parts 31281 | -5/Upper Caves | Learned 12 Factory zone layouts 31380 | -5/Upper Caves | Entered another Upper Caves area 31380 | -5/Upper Caves | Accompanied by 1 ally 31434 | -5/Upper Caves | Learned Factory terminal intel 31469 | -5/Upper Caves | Discovered exit to Factory (range 12) 31758 | -5/Upper Caves | Learned Research trap positions 31758 | -5/Upper Caves | Learned Research security intel 31758 | -5/Upper Caves | Learned Extension terminal intel 31758 | -5/Upper Caves | Learned Armory terminal intel 31758 | -5/Upper Caves | Learned Research garrison access intel 31758 | -5/Upper Caves | Learned Armory garrison access intel 31841 | -5/Upper Caves | Discovered new exit (range 7) 31909 | -5/Upper Caves | Entered Zhirov 31909 | -5/Zhirov | Accompanied by 2 allies 31911 | -5/Zhirov | Discovered new exit (range 3) 31920 | -5/Zhirov | Met Zhirov 31933 | -5/Zhirov | Learned location of Quarantine (-2) 31933 | -5/Zhirov | Learned location of Testing (-3) 31933 | -5/Zhirov | Learned location of Command (-1) 31943 | -5/Zhirov | Zhirov requested help retrieving the SGEMP Prototype 31951 | -5/Zhirov | Found Alien Artifact 31958 | -5/Zhirov | Found Alien Artifact 31958 | -5/Zhirov | Identified Integrated Reactor 31958 | -5/Zhirov | Installed Integrated Reactor, increased core energy generation (+10) 32086 | -5/Zhirov | Entered Proximity Caves 32086 | -4/Proximity Caves | Accompanied by 2 allies 32089 | -4/Proximity Caves | Spotter reported a threat 32145 | -4/Proximity Caves | Lost 5 parts (1n1u3w) 32199 | -4/Proximity Caves | Learned Research garrison access intel 32255 | -4/Proximity Caves | Attracted the attention of an 0b10 checkpoint 32406 | -4/Proximity Caves | Build established: Mutant 32602 | -4/Proximity Caves | Entered Factory 32602 | -4/Factory | Evolved 2 slots: Utility x2 32603 | -4/Factory | Identified exit to Upper Caves 32603 | -4/Factory | Identified exit to Research 32604 | -4/Factory | Loaded intel: 26 terminal locations 32801 | -4/Factory | Build established: Gunner 32975 | -4/Factory | Discovered exit to Research (range 12) 32976 | -4/Factory | Lost 3 parts (1n2w) 33259 | -4/Factory | Build established: Mutant 33549 | -4/Factory | Repaired Lrg. Storage Unit 33585 | -4/Factory | Found Unknown Device 33585 | -4/Factory | Identified Launcher Loader 33631 | -4/Factory | Discovered exit to Research (range 40) 33665 | -4/Factory | Fabricated Imp. Arc Thrower (x1) 33696 | -4/Factory | Learned 4 Research zone layouts 33748 | -4/Factory | Loaded intel: 4 garrison access locations 33779 | -4/Factory | Repaired Matter Neutralizer? 33824 | -4/Factory | Learned Research emergency access door positions 33852 | -4/Factory | Loaded intel: 4 scanalyzer locations 33868 | -4/Factory | Learned 4 Armory zone layouts 33894 | -4/Factory | Learned 8 Research zone layouts 33906 | -4/Factory | Fabricated Cmb. Linear Gravjet? 34092 | -4/Factory | Fabricated Imp. Arc Thrower (x1) 34213 | -4/Factory | Build established: Hacker-Gunner 34394 | -4/Factory | Fabricated Imp. Arc Thrower (x1) 35251 | -4/Factory | Spotted B-86 Titan 35252 | -4/Factory | Manually triggered Chute Trap 35252 | -4/Factory | Sucked down chute 35252 | -4/Factory | Entered Waste 35253 | -4/Waste | Met a frightened Derelict 35256 | -4/Waste | Spotted C-40 Crusher 35257 | -4/Waste | Spotted C-40 Crusher 35257 | -4/Waste | Spotted C-40 Crusher 35258 | -4/Waste | Spotted C-40 Crusher 35319 | -4/Waste | Spotted C-40 Crusher 35338 | -4/Waste | Spotted C-40 Crusher 35343 | -4/Waste | Discovered new exit (range 16) 35717 | -4/Waste | Rewired C-40 Crusher 35794 | -4/Waste | Rewired C-40 Crusher 35799 | -4/Waste | Rewired C-40 Crusher 35821 | -4/Waste | Allies destroyed C-40 Crusher 35839 | -4/Waste | Allies destroyed C-40 Crusher 35893 | -4/Waste | Warlord forces began an assault 36000 | -4/Waste | Entered Factory 36000 | -4/Factory | Accompanied by 22 allies 36028 | -4/Factory | Repaired Cmb. Airjet? 36065 | -4/Factory | Repaired Lrn. Proton Cannon? 36180 | -4/Factory | Fabricated Exp. Weapon Shielding (x1) 36182 | -4/Factory | Lost 4 allies 36381 | -4/Factory | Build established: Bothacker-Gunner 36498 | -4/Factory | Lost 6 allies 36595 | -4/Factory | Fabricated Imp. Arc Thrower (x1) 36683 | -4/Factory | Lost 3 allies 36815 | -4/Factory | Discovered new exit (range 11) 36829 | -4/Factory | Entered Armory 36830 | -4/Armory | Met VL-GR5, who suggested a friendly competition 36831 | -4/Armory | Identified exit to Lab 36832 | -4/Armory | Loaded intel: 15 terminal locations 36928 | -4/Armory | Lost 4 allies 37213 | -4/Armory | Identified Transdimensional Reconstructor 37213 | -4/Armory | Warped through subspace to slip node 37218 | -4/Armory | Energy Cycler disabled 37325 | -4/Armory | Entered Lab 37325 | -4/Lab | Discovered exit to Research (range 9) 37330 | -4/Lab | Entered Research 37330 | -3/Research | Evolved 2 slots: Power x1, Utility x1 37331 | -3/Research | Identified exit to Research 37332 | -3/Research | Loaded intel: 54 trap records 37335 | -3/Research | Loaded intel: 4 garrison access locations 37530 | -3/Research | Revision forces began assault on 0b10 37645 | -3/Research | Spotted B-86 Titan 37651 | -3/Research | Rewired B-86 Titan 37753 | -3/Research | Met up with Revision 17++ 37807 | -3/Research | Fabricated Exp. Weapon Shielding? 38023 | -3/Research | Fabricated Cmb. Linear Gravjet? 38030 | -3/Research | Research terminal network offline 38211 | -3/Research | Discovered exit to Research (range 16) 38339 | -3/Research | Build established: Machinist-Gunner 38513 | -3/Research | Discovered new exit (range 13) 38521 | -3/Research | Identified exit to Testing 38571 | -3/Research | Discovered exit to Research (range 15) 38597 | -3/Research | Fabricated F-cell Engine? 38787 | -3/Research | Spotted Striker 39171 | -3/Research | Found Exp. Targeting Computer 39554 | -3/Research | Build established: Bothacker-Gunner 39631 | -3/Research | Spotted Striker 39635 | -3/Research | Rewired Striker 39643 | -3/Research | Spotted Executioner 39645 | -3/Research | Spotted Striker 39675 | -3/Research | Spotted Executioner 39774 | -3/Research | Entered another Research area 39774 | -2/Research | Evolved 2 slots: Utility x2 39775 | -2/Research | Identified exit to Quarantine 39776 | -2/Research | Loaded intel: 3 garrison access locations 40022 | -2/Research | Discovered new exit (range 16) 40036 | -2/Research | Spotted B-90 Cyclops 40100 | -2/Research | Lost 3 allies 40126 | -2/Research | Rewired B-90 Cyclops 40498 | -2/Research | Entered Access 40498 | -1/Access | Evolved 2 slots: Propulsion x2 40528 | -1/Access | Lost 4 parts (1p2u1w) 40574 | -1/Access | Identified exit to Command 41198 | -1/Access | Spotted B-99 Colossus 41245 | -1/Access | Spotted B-99 Colossus 41250 | -1/Access | Spotted B-99 Colossus 41282 | -1/Access | Discovered new exit (range 2) 41287 | *** | Escaped! Last Messages --------------- 41268_ Acquired 24 matter. 41270_ Knocked back. 41270_ Penetrated by Slug. 41270_ Slug penetrates B-99 Colossus. 41270_ Slug penetrates Reinforced Barrier. 41271_ Knocked back. 41271_ Penetrated by Slug. 41271_ Enh. Nova Cannon destroyed. 41271_ Slug penetrates B-99 Colossus. 41271_ Penetrated by Slug. 41274_ Slug penetrates Sealed Heavy Doors. 41278_ Power failure, Imp. Fusion Compressor shutdown. 41282_ EXIT=FOUND 41283_ Penetrated by Slug. 41287_ Power failure, Imp. Fusion Compressor shutdown. 41287_ Slug penetrates Sealed Heavy Doors. 41287_ Slug penetrates Sealed Barrier. 41287_ Slug penetrates Sealed Heavy Doors. 41287_ Penetrated by Slug. 41287_ Imp. Arc Thrower destroyed. Map ----- +----------------------------------------------------+ | ##########+# ###### ????????????????????? | | ????# # #?????????????????????? | | ????# ## #?????????????????????? | | ????# " # #?????????????????????? | | ????# """" ## % #?????????????????????? | | ????#""""" ## #?????????????????????? | | ????# """"" #### % #########?????????????? | | ????# """" #??## ?????????? | | ????# " #???## % ####### ??????????? | | ????# #?#### ####??????????????????? | | ????# #?# #??????????????????? | | ????# ![ #?# #??????????????????? | | ???## ][ #?# #??????????????????? | | #### ############### % BB #??????????????????? | | ##??????????# # BBBB #??????????????????? | | #????????????## BB #??????????????????? | | #????????????# #??????????????????? | | ##????????????#"""" """""#??????????????????? | | #?????????????????" "???????????????????????? | | #?????????????????" "???????????????????????? | | #?????????????#"""" """""#??????????????????? | | """ #?????????????# #??????????????????? | | """ ###???????????# "" "" #??????????????????? | | """ # #???????????# ?" " #??????????????????? | | """ ###???????????#??" "" " #??????????????????? | | """ #????????????????" "@ " #??????????????????? | | ######????????????????" " #??????????????????? | | ???????????????????# " "" #??????????????????? | | ???????????????????# #??????????????????? | | ???????????????????# % #??????????????????? | | ???????????????????""""""""""""??????????????????? | | ?????????????????????????????????????????????????? | | ?????????????????????????????????????????????????? | | ?????????????????????????????????????????????????? | | ?????????????????????????????????????????????????? | | ?????????????????????????????????????????????????? | | ?????????????????????????????????????????????????? | | ?????????????????????????????????????????????????? | | ?????????????????????????????????????????????????? | | ?????????????????????????????????????????????????? | | ?????????????????????????????????????????????????? | | ?????????????????????????????????????????????????? | | ?????????????????????????????????????????????????? | | ?????????????????????????????????????????????????? | | ?????????????????????????????????????????????????? | | ?????????????????????????????????????????????????? | | ?????????????????????????????????????????????????? | | ?????????????????????????????????????????????????? | | ?????????????????????????????????????????????????? | | ?????????????????????????????????????????????????? | +----------------------------------------------------+ Best States ------------- Heat Dissipation 74 Coolant Potential 120 Energy Generation 59 Energy Capacity 500 Matter Stores 300 Matter Capacity 300 Sight Range 16 Terrain Scan Range 16 Terrain Scan Density 10 Cloak Strength 2 Additional Mass Support 9 Armor Coverage 600 Core Shielding 20 Weapon Shielding 90 Weapon Cycling 25 Phase Shifting 10 Evasion (%) 77 Targeting Accuracy 12 Melee Accuracy 6 Core Analysis 6 Armor Integrity Analysis 30 Recoil Reduction 2 Energy Filtering 50 Offensive Hacking 30 Defensive Hacking 20 Relay Coupler Types 4 Relay Coupler Value 52 Item Schematics ----------------- Hcp. Storage Unit | -10/Materials | Hacked Beamcaster | -8/Materials | Scanalyzed Core Shielding | -8/Materials | Extracted Hvy. Particle Gun | -8/Materials | Extracted Core Analyzer | -7/Factory | Hacked Armor Integrity Analyzer | -7/Factory | Hacked Adv. Hacking Suite | -7/Factory | Hacked Arc Projector | -7/Factory | Scanalyzed Linear Gravjet | -7/Factory | Scanalyzed Imp. Arc Projector | -7/Factory | Hacked Adv. Reaction Control System | -6/Factory | Hacked Cmb. Airjet | -6/Factory | Hacked Prc. Energy Filter | -6/Factory | Scanalyzed Centrium Medium Armor Plating | -5/Factory | Scanalyzed Adv. Weapon Cycler | -5/Factory | Hacked Mni. Smartbomb Launcher | -5/Factory | Scanalyzed F-cell Engine | -5/Factory | Hacked Assault Drone Bay | -5/Zhirov | Free Exp. Heat Sink | -5/Zhirov | Free Exp. Optical Array | -5/Zhirov | Free Imp. Arc Thrower | -5/Zhirov | Free Exp. Weapon Shielding | -4/Factory | Hacked Cmb. Linear Gravjet | -4/Factory | Scanalyzed Robot Schematics ------------------ None Fabricated ------------ Linear Gravjet | x2 | -7/Factory | Preloaded Core Analyzer | x2 | -7/Factory Armor Integrity Analyzer | x2 | -7/Factory Arc Projector | x2 | -7/Factory Y-54 Guardian | x2 | -7/Factory | Preloaded Linear Gravjet | x2 | -7/Factory H-55 Commando | x2 | -7/Factory | Preloaded Imp. Arc Projector | x2 | -6/Factory Imp. Arc Projector | x2 | -6/Factory Cmb. Airjet | x2 | -6/Factory Imp. Arc Projector | x2 | -6/Factory Cmb. Airjet | x2 | -6/Factory Imp. Arc Projector | x2 | -6/Factory Imp. Arc Projector | x2 | -6/Factory Imp. Arc Projector | x2 | -5/Factory Imp. Arc Projector | x2 | -5/Factory Imp. Arc Projector | x2 | -5/Factory Cmb. Airjet | x2 | -5/Factory F-cell Engine | x1 | -5/Factory Imp. Arc Thrower | x1 | -4/Factory Cmb. Linear Gravjet | x2 | -4/Factory | Preloaded Imp. Arc Thrower | x1 | -4/Factory Imp. Arc Thrower | x1 | -4/Factory Exp. Weapon Shielding | x1 | -4/Factory Imp. Arc Thrower | x1 | -4/Factory Exp. Weapon Shielding | x1 | -3/Research Cmb. Linear Gravjet | x2 | -3/Research F-cell Engine | x1 | -3/Research Alien Tech Used ----------------- Integrated Reactor Transdimensional Reconstructor Achievements -------------- None Challenges ------------ None Game ------ Seed MetaTractorSword Manual? 0 Play Time 16:55:06 Cumulative 231.2 hours Start 2024.11.20 @ 00:00:19 End 2024.11.22 @ 05:33:15 Sessions 17 Manual Loads 0 Difficulty Rogue Special Mode None Game No. 38 Rogue 38 Adventurer 0 Explorer 0 Win Type 0 Total 10 Types 3/0/4/1/1/0/0/1/0 Lore% 48 Gallery% 66 Achievement% 62 Wizard Run 0 Options --------- Layout 0 ASCII 1 Keyboard 1 Movement Arrows Keybinds 0 Fullscreen 1 Font 12/Cog Map View 83x54 Zoom Use 0% Tactical HUD 1 Map Filters NONE Filters NONE Steam 0 RUN: 3c8efedd-8c24-4ac8-b1a9-39eb09ebc53e